Workbook

Sheet Cobija
B2: FICHA TECNICA DEL SISTEMA AISLADO | F2: PROYECTOS POREVISTOS
C3: 1 | D3: S1
A4: 2 | B4: Departamento | C4: =VLOOKUP($C$3,'[11]Potencia Inst y Efect'!$A$9:$W$40,A4,0) -> Pando | F4: NO TIENE PROYECTOS PREVISTOS, SOLO EXPANSION COMB. FOSIL | K4: X
A5: 3 | B5: Provincia | C5: =VLOOKUP($C$3,'[11]Potencia Inst y Efect'!$A$9:$W$40,A5,0) -> Nicolas Suarez
A6: 4 | B6: Sistema Eléctrico | C6: =VLOOKUP($C$3,'[11]Potencia Inst y Efect'!$A$9:$W$40,A6,0) -> Cobija
A7: 5 | B7: Empresa | C7: =VLOOKUP($C$3,'[11]Potencia Inst y Efect'!$A$9:$W$40,A7,0) -> ENDE
A8: 6 | B8: Combustible | C8: =VLOOKUP($C$3,'[11]Potencia Inst y Efect'!$A$9:$W$40,A8,0) -> Diesel
A9: 10 | B9: Potencia Instalada MVA | C9: =VLOOKUP($C$3,'[11]Potencia Inst y Efect'!$A$9:$W$40,A9,0) -> 28.2
A10: 15 | B10: Potencia Instalada MW | C10: =VLOOKUP($C$3,'[11]Potencia Inst y Efect'!$A$9:$W$40,A10,0) -> 22.56
A11: 21 | B11: Potencia a Temp. Media | C11: =VLOOKUP($C$3,'[11]Potencia Inst y Efect'!$A$9:$W$40,A11,0) -> 19.5
B12: Consumo especifico (lts/kWh) | C12: =SUM(F26:H26)/SUM(F25:H25) -> 0.2660662575
A13: 8 | B13: Energía Alternativa | D13: Solar
A14: 11 | B14: Potencia Instalada MVA | D14: =VLOOKUP($D$3,'[11]Potencia Inst y Efect'!$A$9:$W$40,A14,0) -> 5.1
A15: 16 | B15: Potencia Instalada MW | D15: =VLOOKUP($D$3,'[11]Potencia Inst y Efect'!$A$9:$W$40,A15,0) -> 5.1
A16: 22 | B16: Potencia a Temp. Media | D16: 0
B17: Categoría | C17: Gran Escala | F17: Factores de Emisiones
B18: Metodología Aplicable | C18: AM00045 | F18: Gas Natural | G18: =54300*0.00000105506 -> 0.057289758 | H18: gCO2/BTU
B19: % Crecimiento Acumulativo Anual | C19: =(H23/D23)^(1/4)-1 -> 0.0497491461 | F19: Diesel | G19: =72600*0.00000105506 -> 0.076597356 | H19: gCO2/BTU
B20: Factor Energía Vendida/Generación Bruta | C20: =SUM(D27:H27)/SUM(D25:H25) -> 0.897020501
C22: Unidades | D22: 2014 | E22: =+D22+1 -> 2015 | F22: =+E22+1 -> 2016 | G22: 2017 | H22: 2018 | I22: 2019 | J22: 2020 | K22: 2021 | L22: 2022 | M22: 2023 | N22: 2024 | O22: 2025
B23: Generación Total | C23: MWh | D23: =+D24+D25 -> 52004.8047 | E23: =+E24+E25 -> 60848.55679 | F23: 61362.61289 | G23: 62745.2016 | H23: 63151.7791 | I23: =H23*(1+$C$19) -> 66293.52619 | J23: =I23*(1+$C$19) -> 69591.57251 | K23: 73053.69381 | L23: 76688.0527 | M23: 80503.21784 | N23: 84508.18418 | O23: =N23*(1+$C$19) -> 88712.39419
B24: Generación Energía Renovable | C24: MWh | D24: 0 | E24: 4794.375501 | F24: 5627.8184 | G24: 5776.1256 | H24: 5319.8761 | I24: =AVERAGE(F24:H24) -> 5574.6067 | J24: =AVERAGE(G24:I24) -> 5556.869467 | K24: 5483.784089 | L24: 5538.420085 | M24: 5526.35788 | N24: 5516.187351 | O24: 5526.988439
B25: Generación | C25: MWh | D25: 52004.8047 | E25: 56054.18129 | F25: 55734.79449 | G25: 56969.076 | H25: 57831.903 | I25: =+I23-I24 -> 60718.91949 | J25: =+J23-J24 -> 64034.70304 | K25: 67569.90972 | L25: 71149.63261 | M25: 74976.85996 | N25: 78991.99683 | O25: 83185.40575
B26: Combustible Fósil | C26: Miles de Litros | D26: 13406.099 | E26: 14382.121 | F26: 14611.595 | G26: 14853.70102 | H26: 15908.519 | I26: =+I25*$C$12 -> 16155.25567 | J26: =+J25*$C$12 -> 17037.47379 | K26: 17978.073 | L26: 18930.51647 | M26: 19948.81253 | N26: 21017.10497 | O26: 22132.82959
B27: Energía Vendida | C27: MWh | D27: 42283.49869 | E27: 48572.56787 | F27: 51457.802 | G27: 52482.94116 | H27: 55108.401 | I27: =I23*$C$20 -> 59466.65207 | J27: =J23*$C$20 -> 62425.06723 | K27: 65530.66102 | L27: 68790.75545 | M27: 72213.0368 | N27: 75805.57371 | O27: 79576.83628
B28: Cantidad de Usuarios | D28: 13895 | E28: 14516 | F28: 15424 | G28: 15589 | H28: 17092
B29: Consumo por usuario | C29: kWh/usuario-mes | D29: =(D27*1000/D28)/12 -> 253.5894128 | E29: =(E27*1000/E28)/12 -> 278.8449979 | F29: =(F27*1000/F28)/12 -> 278.0180347 | G29: =(G27*1000/G28)/12 -> 280.5554192 | H29: =(H27*1000/H28)/12 -> 268.6851597
B30: Demanda Máxima | C30: MW | F30: 11.57 | G30: 11.45 | H30: 12.36
B31: Potencia Instalada | C31: MW | D31: 20.61 | E31: 25 | F31: 25 | G31: 24.16 | H31: =+C10 -> 22.56
B32: Pot. Efectiva a Temp. Media | C32: MW | D32: 15.96 | E32: 19.26 | F32: 19.66 | G32: 19.2 | H32: =+C11 -> 19.5
B33: Factor de Planta | D33: =D25/(D32*8760) -> 0.3719687682 | E33: =E25/(E32*8760) -> 0.3322367156 | F33: =F25/(F32*8760) -> 0.3236225566 | G33: =G25/(G32*8760) -> 0.3387145405 | H33: =H25/(H32*8760) -> 0.3385546365
B39: Calculo del Factor de Emisión
B40: COEF i,j = | C40: =+G19 -> 0.076597356 | D40: =+H18 -> gCO2/BTU | E40: Diesel
D42: =+D22 -> 2014 | E42: =+E22 -> 2015 | F42: =+F22 -> 2016 | G42: =+G22 -> 2017 | H42: =+H22 -> 2018 | I42: =+H42+1 -> 2019 | J42: 2020 | K42: 2021 | L42: 2022 | M42: 2023 | N42: 2024 | O42: 2025
B43: EG y = | C43: MWh | D43: =+D23 -> 52004.8047 | E43: =+E23 -> 60848.55679 | F43: 61362.61289 | G43: 62745.2016 | H43: 63151.7791 | I43: 66293.52619 | J43: 69591.57251 | K43: 73053.69381 | L43: 76688.0527 | M43: 80503.21784 | N43: 84508.18418 | O43: 88712.39419
B44: GEN j,bl = | C44: MWh | D44: =+D25 -> 52004.8047 | E44: =+E25 -> 56054.18129 | F44: 55734.79449 | G44: 56969.076 | H44: 57831.903 | I44: 60718.91949 | J44: =+J25 -> 64034.70304 | K44: 67569.90972 | L44: 71149.63261 | M44: 74976.85996 | N44: 78991.99683 | O44: =+O25 -> 83185.40575
B45: F i,j,bl = | C45: MMBTU | D45: =+D26*33710/1000 -> 451919.5973 | E45: =+E26*33710/1000 -> 484821.2989 | F45: =+F26*33710/1000 -> 492556.8674 | G45: =+G26*33710/1000 -> 500718.2615 | H45: =+H26*33710/1000 -> 536276.1755 | I45: =I26*33710/1000 -> 544593.6686 | J45: =J26*33710/1000 -> 574333.2414 | K45: 606040.8409 | L45: 638147.7103 | M45: 672474.4703 | N45: 708486.6086 | O45: 746097.6854
B46: EF bl,ini = | C46: tCO2/MWh | F46: =SUM(D45:F45)*$C$40/SUM(D44:F44) -> 0.6684040707 | G46: =SUM(E45:G45)*$C$40/SUM(E44:G44) -> 0.6708911195 | H46: =SUM(F45:H45)*$C$40/SUM(F44:H44) -> 0.6870088509 | I46: =+H46 -> 0.6870088509 | J46: 0.6870088509 | K46: 0.6870088509 | L46: 0.6870088509 | M46: 0.6870088509 | N46: 0.6870088509 | O46: 0.6870088509
B47: BE y = | C47: tCO2/año | D47: =+F46*D44 -> 34760.22316 | E47: =+F46*E44 -> 37466.84296 | F47: =+F46*F44 -> 37253.36352 | G47: =+G46*G44 -> 38220.04718 | H47: 39731.02923 | I47: 41714.43511 | J47: 43992.40775 | K47: 46421.12604 | L47: 48880.42735 | M47: 51509.76641 | N47: 54268.20098 | O47: 57149.11002
B48: EF bl = | C48: tCO2/MWh | D48: =+D47/D43 -> 0.6684040707 | E48: =+E47/E43 -> 0.615739221 | F48: 0.6071019757 | G48: 0.6091309965 | H48: 0.6291355492 | I48: =+I47/I43 -> 0.6292384416 | J48: 0.6321513679 | K48: 0.635438451 | L48: 0.6373929918 | M48: 0.6398472979 | N48: 0.6421650341 | O48: 0.644206602
B50: Evolución Necesidad de Potencia
B51: Potencia Instalada | C51: MW | D51: =+D31 -> 20.61 | E51: 25 | F51: 25 | G51: 24.16 | H51: 22.56 | I51: =+H51 -> 22.56 | J51: =($H$51/$H$52)*J52 -> 24.97968812 | K51: =+J51 -> 24.97968812 | L51: =($H$51/$H$52)*L52 -> 27.75519443 | M51: =+L51 -> 27.75519443 | N51: =($H$51/$H$52)*N52 -> 30.81447015 | O51: =+N51 -> 30.81447015
B52: Pot. Efectiva a Temp. Media | C52: MW | D52: 15.96 | E52: 19.26 | F52: 19.66 | G52: 19.2 | H52: 19.5 | I52: =I25/(I53*8760) -> 20.47345615 | J52: =J44/(J53*8760) -> 21.59148575 | K52: 22.78350134 | L52: 23.9905271 | M52: 25.28100743 | N52: 26.63484787 | O52: 28.04879881
B53: Factor de Planta | D53: 0.3719687682 | E53: 0.3322367156 | F53: 0.3236225566 | G53: 0.3387145405 | H53: 0.3385546365 | I53: =+H53 -> 0.3385546365 | J53: 0.3385546365 | K53: 0.3385546365 | L53: 0.3385546365 | M53: 0.3385546365 | N53: 0.3385546365 | O53: 0.3385546365
B54: Adiciones de capacidad | C54: MW | J54: =+J51-I51 -> 2.419688124 | K54: 0 | L54: 2.775506302 | M54: 0 | N54: 3.059275721 | O54: 0
B56: Donde
B57: GEN j,bl = | C57: MWh | D57: Electricidad (MWh) generada por el sistema aislado de la fuente j (gas natural o diésel), el los últimos tres años previo a la implementación del proyecto
B58: F i,j,bl = | C58: MMBTU | D58: Cantidad de Combustible i (masa o volumen) consumido por la fuente j (planta)
B59: EF bl = | C59: tCO2/MWh | D59: Línea de Base del Factor de Emisiones del sistema aislado (tCO2e/MWh) al momento de la interconexión a la red
B60: COEF i,j = | C60: gCO2/BTU | D60: Coefiente de emisiones de CO2 del combustible
B61: BE y = | C61: tCO2/año | D61: Línea de Base de emisiones
B62: EG y = | C62: MWh | D62: Electricidad abastecida al sistema Aislado en el año y

Sheet Riberalta
B2: FICHA TECNICA DEL SISTEMA AISLADO | F2: PROYECTOS PREVISTOS
C3: 5
A4: 2 | B4: Departamento | C4: =VLOOKUP($C$3,'[11]Potencia Inst y Efect'!$A$9:$W$40,A4,0) -> Beni | F4: Hibridación/Desplazamiento de energía fósil | K4: X
A5: 3 | B5: Provincia | C5: =VLOOKUP($C$3,'[11]Potencia Inst y Efect'!$A$9:$W$40,A5,0) -> Vaca Diez
A6: 4 | B6: Sistema Eléctrico | C6: =VLOOKUP($C$3,'[11]Potencia Inst y Efect'!$A$9:$W$40,A6,0) -> Riberalta | F6: Proyecto: | G6: Planta Solar Riberalta
A7: 5 | B7: Empresa | C7: =VLOOKUP($C$3,'[11]Potencia Inst y Efect'!$A$9:$W$40,A7,0) -> CER Ltda. | G7: Potencia Instalada MW | H7: 5000 | I7: kWp
A8: 6 | B8: Combustible | C8: =VLOOKUP($C$3,'[11]Potencia Inst y Efect'!$A$9:$W$40,A8,0) -> Diesel | G8: Potencia a Temp. Media | H8: =+H7*0.95 -> 4750 | I8: kWp
A9: 10 | B9: Potencia Instalada MVA | C9: =VLOOKUP($C$3,'[11]Potencia Inst y Efect'!$A$9:$W$40,A9,0) -> 22.03 | G9: Mes/Año de puesta en operación | H9: 2021-05-01
A10: 15 | B10: Potencia Instalada MW | C10: =VLOOKUP($C$3,'[11]Potencia Inst y Efect'!$A$9:$W$40,A10,0) -> 16.12 | G10: Factor de Planta | H10: 0.1373698059
A11: 21 | B11: Potencia a Temp. Media | C11: =VLOOKUP($C$3,'[11]Potencia Inst y Efect'!$A$9:$W$40,A11,0) -> 15.78 | G11: Categoría | H11: Pequeña Escala
B12: Consumo especifico (lts/kWh) | C12: =SUM(F26:H26)/SUM(F25:H25) -> 0.2901621296 | G12: Metodología Aplicable | H12: AMS I.A
A13: 8 | B13: Energía Alternativa
A14: 11 | B14: Potencia Instalada MVA
A15: 16 | B15: Potencia Instalada MW
A16: 22 | B16: Potencia a Temp. Media
B17: Categoría | C17: Gran Escala | F17: Factores de Emisiones
B18: Metodología Aplicable Línea de Base | C18: AM00045 | F18: Gas Natural | G18: =54300*0.00000105506 -> 0.057289758 | H18: gCO2/BTU
B19: % Crecimiento Acumulativo Anual | C19: =(H25/F25)^(1/2)-1 -> 0.06341174838 | F19: Diesel | G19: =72600*0.00000105506 -> 0.076597356 | H19: gCO2/BTU
B20: Factor Energía Vendida/Generación Bruta | C20: =SUM(D27:H27)/SUM(D25:H25) -> 0.8834917292
C22: Unidades | D22: 2014 | E22: =+D22+1 -> 2015 | F22: =+E22+1 -> 2016 | G22: 2017 | H22: 2018 | I22: 2019 | J22: 2020 | K22: 2021 | L22: 2022 | M22: 2023 | N22: 2024 | O22: 2025
B23: Generación Total | C23: MWh | D23: =+D24+D25 -> 39754.1004 | E23: 44000 | F23: 47860 | G23: 49359.07 | H23: 54122.22 | I23: =H23*(1+$C$19) -> 57554.2046 | J23: =I23*(1+$C$19) -> 61203.81734 | K23: 65084.8584 | L23: 69212.00307 | M23: 73600.85719 | N23: 78268.01623 | O23: 83231.12798
B24: Generación Energía Renovable | C24: MWh
B25: Generación | C25: MWh | D25: 39754.1004 | E25: 44000 | F25: =(25.31+22.55)*1000 -> 47860 | G25: 49359.07 | H25: 54122.22 | I25: =+I24+I23 -> 57554.2046 | J25: =+J24+J23 -> 61203.81734 | K25: 65084.8584 | L25: 69212.00307 | M25: 73600.85719 | N25: 78268.01623 | O25: 83231.12798
B26: Combustible Fósil | C26: Miles de Litros | D26: 11267.231 | E26: 15214.2 | F26: =6544.7+7493 -> 14037.7 | G26: 14174.208 | H26: 15701.603 | I26: =+I25*$C$12 -> 16700.05057 | J26: =+J25*$C$12 -> 17759.02998 | K26: 18885.16112 | L26: 20082.7022 | M26: 21356.18146 | N26: 22710.41427 | O26: 24150.52134
B27: Energía Vendida | C27: MWh | D27: 35106.71 | E27: 39792.533 | F27: 42339.17 | G27: 43252.69 | H27: 47213.73 | I27: =I23*$C$20 -> 50848.66374 | J27: =J23*$C$20 -> 54073.06641 | K27: 57501.9341 | L27: 61148.23227 | M27: 65025.74859 | N27: 69149.145 | O27: 73534.01318
B28: Cantidad de Usuarios | D28: 17883 | E28: 19044 | F28: 19779 | G28: 20120 | H28: 21407
B29: Consumo por usuario | C29: kWh/usuario-mes | D29: =(D27*1000/D28)/12 -> 163.5944286 | E29: =(E27*1000/E28)/12 -> 174.1254157 | F29: =(F27*1000/F28)/12 -> 178.3843555 | G29: =(G27*1000/G28)/12 -> 179.1446736 | H29: =(H27*1000/H28)/12 -> 183.7939693
B30: Demanda Máxima | C30: MW | F30: 8.922 | G30: 9.155 | H30: 9.824
B31: Potencia Instalada | C31: MW | D31: 10.08 | E31: 10.08 | F31: 15.75 | G31: 16.05 | H31: =+C10 -> 16.12
B32: Pot. Efectiva a Temp. Media | C32: MW | D32: 9.27 | E32: 9.27 | F32: 15.26 | G32: 15.71 | H32: =+C11 -> 15.78
B33: Factor de Planta | D33: =D25/(D32*8760) -> 0.4895511667 | E33: =E25/(E32*8760) -> 0.5418372222 | F33: =F25/(F32*8760) -> 0.358025578 | G33: =G25/(G32*8760) -> 0.3586630829 | H33: =H25/(H32*8760) -> 0.3915295067
B39: Calculo del Factor de Emisión
B40: COEF i,j = | C40: =+G19 -> 0.076597356 | D40: =+H19 -> gCO2/BTU | E40: Diesel
D42: 2014 | E42: =+D42+1 -> 2015 | F42: =+E42+1 -> 2016 | G42: 2017 | H42: 2018 | I42: 2019 | J42: 2020 | K42: 2021 | L42: 2022 | M42: 2023 | N42: 2024 | O42: 2025
B43: EG y = | C43: MWh | D43: =+D23 -> 39754.1004 | E43: =+E23 -> 44000 | F43: 47860 | G43: 49359.07 | H43: 54122.22 | I43: 57554.2046 | J43: 61203.81734 | K43: 65084.8584 | L43: 69212.00307 | M43: 73600.85719 | N43: 78268.01623 | O43: 83231.12798
B44: GEN j,bl = | C44: MWh | D44: =+D25 -> 39754.1004 | E44: 44000 | F44: 47860 | G44: 49359.07 | H44: 54122.22 | I44: 57554.2046 | J44: 61203.81734 | K44: 65084.8584 | L44: 69212.00307 | M44: 73600.85719 | N44: 78268.01623 | O44: =+O25 -> 83231.12798
B45: F i,j,bl = | C45: MMBTU | D45: =+D26*33710/1000 -> 379818.357 | E45: =+E26*33710/1000 -> 512870.682 | F45: =+F26*33710/1000 -> 473210.867 | G45: =+G26*33710/1000 -> 477812.5517 | H45: =+H26*33710/1000 -> 529301.0371 | I45: =I26*33710/1000 -> 562958.7048 | J45: =J26*33710/1000 -> 598656.9005 | K45: 636618.7813 | L45: 676987.8912 | M45: 719916.8771 | N45: 765568.0649 | O45: 814114.0744
B46: EF bl,ini = | C46: tCO2/MWh | D46: =D45*$C$40/D44 -> 0.7318259403 | E46: =E45*$C$40/E44 -> 0.8928304139 | F46: =SUM(D45:F45)*$C$40/SUM(D44:F44) -> 0.7949324658 | G46: =SUM(E45:G45)*$C$40/SUM(E44:G44) -> 0.794017533 | H46: =SUM(F45:H45)*$C$40/SUM(F44:H44) -> 0.7492267268 | I46: =+H46 -> 0.7492267268 | J46: 0.7492267268 | K46: 0.7492267268 | L46: 0.7492267268 | M46: 0.7492267268 | N46: 0.7492267268 | O46: 0.7492267268
B47: BE y = | C47: tCO2/año | D47: =+F46*D44 -> 31601.82506 | E47: =+F46*E44 -> 34977.02849 | F47: =+F46*F44 -> 38045.46781 | G47: 39191.96699 | H47: 40549.81374 | I47: 43121.14832 | J47: 45855.53573 | K47: 48763.31542 | L47: 51855.48251 | M47: 55143.72932 | N47: 58640.48961 | O47: 62358.98558
B50: Evolución Necesidad de Potencia
B51: Potencia Instalada | C51: MW | D51: =+D31 -> 10.08 | E51: 10.08 | F51: 15.75 | G51: 16.05 | H51: 16.12 | I51: =+H51 -> 16.12 | J51: =($H$51/$H$52)*J52 -> 19.93509861 | K51: =+J51 -> 19.93509861 | L51: =($H$51/$H$52)*L52 -> 22.54349755 | M51: =+L51 -> 22.54349755 | N51: =($H$51/$H$52)*N52 -> 25.49319126 | O51: =+N51 -> 25.49319126
B52: Pot. Efectiva a Temp. Media | C52: MW | D52: 9.27 | E52: 9.27 | F52: 15.26 | G52: 15.71 | H52: 15.78 | I52: =I25/(I53*8760) -> 18.35096452 | J52: =J44/(J53*8760) -> 19.51463127 | K52: 20.75208816 | L52: 22.06801435 | M52: 23.46738572 | N52: 24.95549368 | O52: 26.53796517
B53: Factor de Planta | D53: 0.4895511667 | E53: 0.5418372222 | F53: 0.358025578 | G53: 0.3586630829 | H53: 0.3915295067 | I53: =+F53 -> 0.358025578 | J53: =+I53 -> 0.358025578 | K53: 0.358025578 | L53: 0.358025578 | M53: 0.358025578 | N53: 0.358025578 | O53: 0.358025578
B54: Adiciones de capacidad | C54: MW | L54: =+L51-K51 -> 2.608398939 | M54: =+M51-L51 -> 0 | N54: =+N51-M51 -> 2.949693715 | O54: =+O51-N51 -> 0
B56: Donde
B57: GEN j,bl = | C57: MWh | D57: Electricidad (MWh) generada por el sistema aislado de la fuente j (gas natural o diésel), el los últimos tres años previo a la implementación del proyecto
B58: F i,j,bl = | C58: MMBTU | D58: Cantidad de Combustible i (masa o volumen) consumido por la fuente j (planta)
B59: EF bl,ini = | C59: tCO2/MWh | D59: Línea de Base del Factor de Emisiones del sistema aislado
B60: COEF i,j = | C60: gCO2/BTU | D60: Coefiente de emisiones de CO2 del combustible
B61: BE y = | C61: tCO2/año | D61: Línea de Base de emisiones
B62: EG y = | C62: MWh | D62: Electricidad abastecida al sistema Aislado en el año y
B72: ACTIVIDADES DEL PROYECTO
B73: Las emisiones de referencia se calculan considerando el consumo de combustible que se hubiera utilizado para generar la cantidad equivalente de energía en ausencia de la actividad del proyecto.
B77: Opción 2: basada en la generación anual de electricidad por la actividad del proyecto
B78: Calculo de línea base:
F79: Ecuación 1
F81: Ecuación 2
B82: Donde:
B83: E BL,y = | C83: MWh | D83: Línea de Base de Energía, y
B84: EG i,y = | C84: MWh | D84: Electricidad generada por las actividades del proyecto en el año y
B85: TDL = | C85: % | D85: Promedio histórico de perdidas técnicas (Transmisión y distribución)
B86: EF CO2,y = | C86: tCO2/MWh | D86: Línea de Base del Factor de Emisiones del sistema aislado
B87: BE CO2, y = | C87: tCO2/año | D87: Línea de Base de Emisiones
D89: =+D42 -> 2014 | E89: 2015 | F89: 2016 | G89: 2017 | H89: 2018 | I89: 2019 | J89: 2020 | K89: 2021 | L89: 2022 | M89: 2023 | N89: 2024 | O89: 2025
B90: EG i,y = | C90: MWh | K90: =L90/12*8 -> 3810.638417 | L90: =+H8*H10*8760/1000 -> 5715.957625 | M90: =+L90 -> 5715.957625 | N90: =+M90 -> 5715.957625 | O90: =+N90 -> 5715.957625
B91: TDL = | C91: % | K91: =1-$C$20 -> 0.1165082708 | L91: =1-$C$20 -> 0.1165082708 | M91: 0.1165082708 | N91: 0.1165082708 | O91: 0.1165082708
B92: E BL,y = | C92: MWh | K92: =+K90/(1-K91) -> 4313.156864 | L92: =+L90/(1-L91) -> 6469.735297 | M92: =+M90/(1-M91) -> 6469.735297 | N92: =+N90/(1-N91) -> 6469.735297 | O92: =+O90/(1-O91) -> 6469.735297
B93: EF CO2,y = | C93: tCO2/MWh | K93: =+H46 -> 0.7492267268 | L93: =+K93 -> 0.7492267268 | M93: =+L93 -> 0.7492267268 | N93: =+M93 -> 0.7492267268 | O93: =+N93 -> 0.7492267268
B94: BE CO2, y = | C94: tCO2/año | K94: =+K93*K90 -> 2855.032148 | L94: =+L93*L90 -> 4282.548222 | M94: =+M93*M90 -> 4282.548222 | N94: 4282.548222 | O94: 4282.548222
D96: =+D89 -> 2014 | E96: 2015 | F96: 2016 | G96: 2017 | H96: 2018 | I96: 2019 | J96: 2020 | K96: 2021 | L96: 2022 | M96: 2023 | N96: 2024 | O96: 2025
B97: Sin Proyecto
B98: Generación total | C98: MWh | D98: =+D23 -> 39754.1004 | E98: =+E23 -> 44000 | F98: 47860 | G98: 49359.07 | H98: 54122.22 | I98: 57554.2046 | J98: 61203.81734 | K98: 65084.8584 | L98: 69212.00307 | M98: 73600.85719 | N98: 78268.01623 | O98: 83231.12798
B99: Emisiones de CO2e | C99: tCO2/año | D99: =+D47 -> 31601.82506 | E99: 34977.02849 | F99: 38045.46781 | G99: 39191.96699 | H99: 40549.81374 | I99: 43121.14832 | J99: 45855.53573 | K99: 48763.31542 | L99: 51855.48251 | M99: 55143.72932 | N99: 58640.48961 | O99: 62358.98558
B100: Con Proyecto
B101: Generación Combustible Fosil | C101: MWh | D101: =+D25-D90 -> 39754.1004 | E101: =+E25-E90 -> 44000 | F101: 47860 | G101: 49359.07 | H101: 54122.22 | I101: 57554.2046 | J101: 61203.81734 | K101: 61274.21998 | L101: 63496.04544 | M101: 67884.89956 | N101: 72552.0586 | O101: 77515.17035
B102: Combustible Fósil | C102: Miles de Litros | D102: =+D26 -> 11267.231 | E102: =+E26 -> 15214.2 | F102: 14037.7 | G102: 14174.208 | H102: 15701.603 | I102: =+I101*$C$12 -> 16700.05057 | J102: =+J101*$C$12 -> 17759.02998 | K102: 17779.45816 | L102: 18424.14777 | M102: 19697.62702 | N102: 21051.85983 | O102: 22491.9669
B103: Emisiones de CO2e | C103: tCO2/año | D103: =+D99-D94 -> 31601.82506 | E103: 34977.02849 | F103: 38045.46781 | G103: 39191.96699 | H103: 40549.81374 | I103: 43121.14832 | J103: 45855.53573 | K103: =+K99-K94 -> 45908.28328 | L103: 47572.93429 | M103: 50861.1811 | N103: 54357.94139 | O103: 58076.43736
B104: Factor Emisiones con Proyecto | C104: tCO2/año | D104: =+D103/D98 -> 0.7949324658 | E104: =+E103/E98 -> 0.7949324658 | F104: 0.7949324658 | G104: 0.794017533 | H104: 0.7492267268 | I104: 0.7492267268 | J104: 0.7492267268 | K104: 0.7053604234 | L104: 0.6873509245 | M104: 0.691040608 | N104: 0.6945102739 | O104: 0.697773042

Sheet San Ingacio Velasco
B2: FICHA TECNICA DEL SISTEMA AISLADO | F2: PROYECTOS PREVISTOS
C3: 19
A4: 2 | B4: Departamento | C4: =VLOOKUP($C$3,'[11]Potencia Inst y Efect'!$A$9:$W$40,A4,0) -> Santa Cruz | F4: Electrificación mediante la extensión de una red (nacional, regional o mini-red) | K4: X
A5: 3 | B5: Provincia | C5: =VLOOKUP($C$3,'[11]Potencia Inst y Efect'!$A$9:$W$40,A5,0) -> Jose Miguel de Velasco
A6: 4 | B6: Sistema Eléctrico | C6: =VLOOKUP($C$3,'[11]Potencia Inst y Efect'!$A$9:$W$40,A6,0) -> San Ignacio de Velasco
A7: 5 | B7: Empresa | C7: =VLOOKUP($C$3,'[11]Potencia Inst y Efect'!$A$9:$W$40,A7,0) -> CRE Ltda. | F7: Proyecto: | G7: Conexión al SIN San Ignacio
A8: 6 | B8: Combustible | C8: =VLOOKUP($C$3,'[11]Potencia Inst y Efect'!$A$9:$W$40,A8,0) -> Diesel | F8: Línea: | G8: 230 kV (Los Troncos - San Ignacio)
A9: 10 | B9: Potencia Instalada MVA | C9: =VLOOKUP($C$3,'[11]Potencia Inst y Efect'!$A$9:$W$40,A9,0) -> 9.8 | G9: Mes/Año de puesta en operación | H9: 2023-11-01
A10: 15 | B10: Potencia Instalada MW | C10: =VLOOKUP($C$3,'[11]Potencia Inst y Efect'!$A$9:$W$40,A10,0) -> 7.84 | G10: Categoría | H10: Gran Escala
A11: 21 | B11: Potencia a Temp. Media | C11: =VLOOKUP($C$3,'[11]Potencia Inst y Efect'!$A$9:$W$40,A11,0) -> 6.792 | G11: Metodología Aplicable | H11: AM00045
B12: Consumo especifico (lt/kWh) | C12: =SUM(F26:H26)/SUM(F25:H25) -> 0.2771806554
A13: 8 | B13: Energía Alternativa
A14: 11 | B14: Potencia Instalada MVA
A15: 16 | B15: Potencia Instalada MW
A16: 22 | B16: Potencia a Temp. Media
B17: Categoría | C17: Gran Escala
B18: Metodología Aplicable Línea de Base | C18: AM00045 (Ver pagina 11 de la metodología) | F18: Factores de Emisiones
B19: % Crecimiento Acumulativo Anual | C19: =(H25/D25)^(1/4)-1 -> 0.06524649702 | F19: Gas Natural | G19: =54300*0.00000105506 -> 0.057289758 | H19: gCO2/BTU
B20: Factor Energía Vendida/Generación Bruta | C20: =SUM(F27:H27)/SUM(F25:H25) -> 0.8833159976 | F20: Diesel | G20: =72600*0.00000105506 -> 0.076597356 | H20: gCO2/BTU
C22: Unidades | D22: 2014 | E22: =+D22+1 -> 2015 | F22: =+E22+1 -> 2016 | G22: 2017 | H22: 2018 | I22: 2019 | J22: 2020 | K22: 2021 | L22: 2022 | M22: 2023 | N22: 2024 | O22: 2025
B23: Generación Total | C23: MWh | D23: =+D24+D25 -> 20118.833 | E23: =+E24+E25 -> 22009.939 | F23: 23362.836 | G23: 24446.847 | H23: 25906.172 | I23: =H23*(1+$C$19) -> 27596.45897 | J23: =I23*(1+$C$19) -> 29397.03125 | K23: 31315.08456 | L23: 33358.28414 | M23: 35534.79532 | N23: 37853.31624 | O23: 40323.11252
B24: Generación Energía Renovable | C24: MWh
B25: Generación | C25: MWh | D25: 20118.833 | E25: 22009.939 | F25: 23362.836 | G25: 24446.847 | H25: 25906.172 | I25: =+I23-I24 -> 27596.45897 | J25: =+J23-J24 -> 29397.03125 | K25: 31315.08456 | L25: 33358.28414 | M25: 35534.79532 | N25: 37853.31624 | O25: 40323.11252
B26: Combustible Fosil | C26: Miles de litros | D26: 5569.661 | E26: 6107.582 | F26: 6427.6 | G26: 6754.024 | H26: 7250.985 | I26: =+I25*$C$12 -> 7649.204584 | J26: =+J25*$C$12 -> 8148.288388 | K26: 8679.935662 | L26: 9246.271059 | M26: 9849.557856 | N26: 10492.207 | O26: 11176.78676
B27: Energía Vendida | C27: MWh | D27: 17541.051 | E27: 19341.801 | F27: 20551.661 | G27: 21797.431 | H27: 22765.302 | I27: =I25*$C$20 -> 24376.39369 | J27: =J25*$C$20 -> 25966.86799 | K27: 27661.11516 | L27: 29465.90603 | M27: 31388.45318 | N27: 33436.4398 | O27: 35618.05037
B28: Cantidad de Usuarios | D28: 8812 | E28: 9304 | F28: 10720 | G28: 11519 | H28: 12184
B29: Consumo por usuario | C29: kWh/usuario-mes | D29: =(D27*1000/D28)/12 -> 165.8822345 | E29: =(E27*1000/E28)/12 -> 173.2391176 | F29: =(F27*1000/F28)/12 -> 159.7610463 | G29: =(G27*1000/G28)/12 -> 157.6918642 | H29: =(H27*1000/H28)/12 -> 155.7048999
B30: Demanda Máxima | C30: MW | F30: 4.57945 | G30: 4.665586 | H30: 5.050678
B31: Potencia Instalada | C31: MW | D31: 8.204 | E31: 8.204 | F31: 8.204 | G31: 8.204 | H31: =+C10 -> 7.84
B32: Pot. Efectiva a Temp. Media | C32: MW | D32: 7.101 | E32: 7.101 | F32: 7.101 | G32: 7.101 | H32: =+C11 -> 6.792
B33: Factor de Planta | D33: =D25/(D32*8760) -> 0.3234291556 | E33: =E25/(E32*8760) -> 0.3538304625 | F33: =F25/(F32*8760) -> 0.3755795537 | G33: =G25/(G32*8760) -> 0.3930060497 | H33: =H25/(H32*8760) -> 0.4354130699
B39: Calculo del Factor de Emisión
B40: EF CO2,j = COEF i,j = | C40: =+G20 -> 0.076597356 | D40: =+H20 -> gCO2/BTU | E40: Diesel
D42: =+D22 -> 2014 | E42: =+E22 -> 2015 | F42: =+F22 -> 2016 | G42: =+G22 -> 2017 | H42: =+H22 -> 2018 | I42: =+H42+1 -> 2019 | J42: 2020 | K42: 2021 | L42: 2022 | M42: 2023 | N42: 2024 | O42: 2025
B43: GEN j,bl = | C43: MWh | D43: =+D25 -> 20118.833 | E43: =+E25 -> 22009.939 | F43: 23362.836 | G43: 24446.847 | H43: 25906.172 | I43: 27596.45897 | J43: 29397.03125 | K43: 31315.08456 | L43: 33358.28414 | M43: 35534.79532 | N43: 37853.31624 | O43: 40323.11252
B44: F i,j,bl = | C44: MMBTU | D44: =D26*1000*33710/1000000 -> 187753.2723 | E44: =E26*1000*33710/1000000 -> 205886.5892 | F44: 216674.396 | G44: 227678.149 | H44: 244430.7044 | I44: 257854.6865 | J44: 274678.8016 | K44: 292600.6312 | L44: 311691.7974 | M44: 332028.5953 | N44: 353692.2981 | O44: 376769.4815
B45: EF bl,ini = | C45: tCO2/MWh | D45: =D44*$C$40/D43 -> 0.714822984 | E45: =SUM(E44)*$C$40/SUM(E43) -> 0.7165112257 | F45: =SUM(E44:F44)*$C$40/SUM(E43:F43) -> 0.713358489 | G45: =SUM(E44:G44)*$C$40/SUM(E43:G43) -> 0.7133610441 | H45: =SUM(F44:H44)*$C$40/SUM(F43:H43) -> 0.7157073029 | I45: =+H45 -> 0.7157073029 | J45: 0.7157073029 | K45: 0.7157073029 | L45: 0.7157073029 | M45: 0.7157073029 | N45: 0.7157073029 | O45: 0.7157073029
B46: BE y = | C46: tCO2/año | D46: =+D43*D45 -> 14381.40424 | E46: =+E43*E45 -> 15770.36837 | F46: =+F43*F45 -> 16666.07739 | G46: 17439.4283 | H46: 18541.23649 | I46: 19750.98722 | J46: 21039.66995 | K46: 22412.43471 | L46: 23874.76757 | M46: 25432.51252 | N46: 27091.89487 | O46: 28859.54611
B48: Evolución Necesidad de Potencia
B49: Potencia Instalada | C49: MW | D49: =+D31 -> 8.204 | E49: 8.204 | F49: 8.204 | G49: 8.204 | H49: 7.84 | I49: =+H49 -> 7.84 | J49: =+I49+2 -> 9.84 | K49: =+J49 -> 9.84 | L49: =+K49+2 -> 11.84 | M49: 11.84 | N49: =+M49+2 -> 13.84 | O49: 13.84
B50: Pot. Efectiva a Temp. Media | C50: MW | D50: 7.101 | E50: 7.101 | F50: 7.101 | G50: 7.101 | H50: 6.792 | I50: =+H50 -> 6.792 | J50: =J49*($I$50/$I$49) -> 8.524653061 | K50: =K49*($I$50/$I$49) -> 8.524653061 | L50: 10.25730612 | M50: 10.25730612 | N50: 11.98995918 | O50: 11.98995918
B51: Factor de Planta | D51: 0.3234291556 | E51: 0.3538304625 | F51: 0.3755795537 | G51: 0.3930060497 | H51: 0.4354130699 | I51: =I25/(I50*8760) -> 0.4638222475 | J51: =J25/(J50*8760) -> 0.3936612389 | K51: =K25/(K50*8760) -> 0.4193462558 | L51: 0.3712498445 | M51: 0.3954725964 | N51: 0.3603977925 | O51: 0.383912486
B52: Adiciones de capacidad | C52: MW | I52: =+I49-H49 -> 0 | J52: 2 | K52: 0 | L52: =+L49-K49 -> 2 | M52: =+M49-L49 -> 0 | N52: =+N49-M49 -> 2 | O52: =+O49-N49 -> 0
B55: Donde
B56: GEN j,bl = | C56: MWh | D56: Electricidad (MWh) generada por el sistema aislado de la fuente "j"
B57: F i,j,bl = | C57: MMBTU | D57: Cantidad de Combustible i (masa o volumen) consumido por la fuente "j"
B58: EF bl,ini = | C58: tCO2/MWh | D58: Línea de Base del Factor de Emisiones del sistema aislado (tCO2e/MWh) al momento de la interconexión a la red
B59: COEF i,j = | C59: gCO2/BTU | D59: Coeficiente de emisiones de CO2 del combustible
B60: BE y = | C60: tCO2/año | D60: Línea de Base de emisiones
B69: ACTIVIDADES DEL PROYECTO
B70: Las emisiones de referencia se calculan considerando el consumo de combustible que se hubiera utilizado para generar la cantidad equivalente de energía en ausencia de la actividad del proyecto.
B75: Emisiones del Proyecto
B76: Utilizamos el factor de emisiones del Sistema Interconectado Nacional (SIN) | C76: 0.48
B79: Donde:
B80: EG y = | C80: Electricidad abastecida al sistema Aislado por la red (SIN) en el año y (MWh)
B81: EF p = | C81: Factor de Emisión de Red (SIN) método simple promedio
B82: TL = | C82: 0.02681488095 | D82: Perdidas de energía en la red de transmisión del SIN
B83: PE sf6,y = | C83: 0 | D83: La red de transmisión nueva no tiene SF6
D85: =+D42 -> 2014 | E85: =+E42 -> 2015 | F85: 2016 | G85: 2017 | H85: 2018 | I85: 2019 | J85: 2020 | K85: 2021 | L85: 2022 | M85: 2023 | N85: 2024 | O85: 2025
B86: EG y(*) = | C86: MWh | M86: =+M25*0.7/12*2 -> 4145.726121 | N86: =+N25*0.7 -> 26497.32137 | O86: =+O25*0.7 -> 28226.17877
B87: =+B82 -> TL = | C87: % | M87: =+C82 -> 0.02681488095 | N87: =+M87 -> 0.02681488095 | O87: =+N87 -> 0.02681488095
B88: EF CO2,y = | C88: tCO2/MWh | M88: =+C76 -> 0.48 | N88: =+M88 -> 0.48 | O88: =+N88 -> 0.48
B89: PE y = | C89: tCO2/año | M89: =M86*M88*(M87+1) -> 2043.308771 | N89: =N86*N88*(N87+1) -> 13059.76506 | O89: =O86*O88*(O87+1) -> 13911.86899
B90: (*) Asumimos que un 70% de la demanda de energía vendría de la red (SIN)
D93: =+D85 -> 2014 | E93: 2015 | F93: 2016 | G93: 2017 | H93: 2018 | I93: 2019 | J93: 2020 | K93: 2021 | L93: 2022 | M93: 2023 | N93: 2024 | O93: 2025
B94: Sin Proyecto
B95: Emisiones Planta Sistema Aislado | C95: tCO2/año | D95: =+D46 -> 14381.40424 | E95: 15770.36837 | F95: 16666.07739 | G95: 17439.4283 | H95: 18541.23649 | I95: 19750.98722 | J95: 21039.66995 | K95: 22412.43471 | L95: 23874.76757 | M95: 25432.51252 | N95: 27091.89487 | O95: 28859.54611
B97: Con Proyecto
B98: Generación Combustible Fosil | C98: MWh | D98: =+D25-D86 -> 20118.833 | E98: =+E25-E86 -> 22009.939 | F98: 23362.836 | G98: 24446.847 | H98: 25906.172 | I98: 27596.45897 | J98: 29397.03125 | K98: 31315.08456 | L98: 33358.28414 | M98: 31389.0692 | N98: 11355.99487 | O98: 12096.93376
B99: Combustible Fósil | C99: Miles de Litros | D99: =+D26 -> 5569.661 | E99: =+E26 -> 6107.582 | F99: 6427.6 | G99: 6754.024 | H99: 7250.985 | I99: =+I98*$C$12 -> 7649.204584 | J99: =+J98*$C$12 -> 8148.288388 | K99: 8679.935662 | L99: 9246.271059 | M99: 8700.442773 | N99: 3147.662101 | O99: 3353.036027
B100: Emisiones Planta Interconectada | C100: tCO2/año | D100: =+(D25-D86)*D45 -> 14381.40424 | E100: =+(E25-E86)*E45 -> 15770.36837 | F100: 16666.07739 | G100: 17439.4283 | H100: 18541.23649 | I100: 19750.98722 | J100: 21039.66995 | K100: =+(K25-K86)*K45 -> 22412.43471 | L100: 23874.76757 | M100: 22465.38606 | N100: 8127.568461 | O100: 8657.863832
B101: Emisiones del Proyecto | C101: tCO2/año | D101: =D89 -> 0 | E101: =E89 -> 0 | F101: 0 | G101: 0 | H101: 0 | I101: 0 | J101: 0 | K101: 0 | L101: 0 | M101: 2043.308771 | N101: 13059.76506 | O101: 13911.86899
B102: Total Emisiones con Proyecto | C102: tCO2/año | D102: =+D101+D100 -> 14381.40424 | E102: 15770.36837 | F102: 16666.07739 | G102: 17439.4283 | H102: 18541.23649 | I102: 19750.98722 | J102: 21039.66995 | K102: 22412.43471 | L102: 23874.76757 | M102: 24508.69483 | N102: 21187.33353 | O102: 22569.73282
B103: Factor Emisiones con Proyecto | C103: tCO2/MWh | D103: =+D102/D23 -> 0.714822984 | E103: =+E102/E23 -> 0.7165112257 | F103: 0.713358489 | G103: 0.7133610441 | H103: 0.7157073029 | I103: 0.7157073029 | J103: 0.7157073029 | K103: 0.7157073029 | L103: 0.7157073029 | M103: 0.6897097509 | N103: 0.5597219909 | O103: 0.5597219909
B105: Emisiones Reducidas | C105: tCO2/año | D105: =+D95-D102 -> 0 | E105: =+E95-E102 -> 0 | F105: 0 | G105: 0 | H105: 0 | I105: 0 | J105: 0 | K105: 0 | L105: 0 | M105: 923.8176892 | N105: 5904.561344 | O105: 6289.813288

Sheet Las Misiones
B2: FICHA TECNICA DEL SISTEMA AISLADO | F2: PROYECTOS PREVISTOS
C3: 17
A4: 2 | B4: Departamento | C4: =VLOOKUP($C$3,'[11]Potencia Inst y Efect'!$A$9:$W$40,A4,0) -> Santa Cruz | F4: Electrificación mediante la extensión de una red (nacional, regional o mini-red) | K4: X
A5: 3 | B5: Provincia | C5: =VLOOKUP($C$3,'[11]Potencia Inst y Efect'!$A$9:$W$40,A5,0) -> Guarayos
A6: 4 | B6: Sistema Eléctrico | C6: =VLOOKUP($C$3,'[11]Potencia Inst y Efect'!$A$9:$W$40,A6,0) -> Las Misiones
A7: 5 | B7: Empresa | C7: =VLOOKUP($C$3,'[11]Potencia Inst y Efect'!$A$9:$W$40,A7,0) -> CRE Ltda. | F7: Proyecto: | G7: Conexión al SIN Las Misiones
A8: 6 | B8: Combustible | C8: =VLOOKUP($C$3,'[11]Potencia Inst y Efect'!$A$9:$W$40,A8,0) -> Gas/Diesel | F8: Línea: | G8: 230 kV (Los Troncos - Guarayos)
A9: 10 | B9: Potencia Instalada MVA | C9: =VLOOKUP($C$3,'[11]Potencia Inst y Efect'!$A$9:$W$40,A9,0) -> 27.8 | G9: Mes/Año de puesta en operación | H9: 2020-12-01
A10: 15 | B10: Potencia Instalada MW | C10: =VLOOKUP($C$3,'[11]Potencia Inst y Efect'!$A$9:$W$40,A10,0) -> 21.35 | G10: Categoría | H10: Gran Escala
A11: 21 | B11: Potencia a Temp. Media | C11: =VLOOKUP($C$3,'[11]Potencia Inst y Efect'!$A$9:$W$40,A11,0) -> 19.05 | G11: Metodología Aplicable | H11: AM00045
B12: Consumo especifico (pc/kWh) | C12: =SUM(F29:H29)/SUM(F27:H27) -> 13.23130259
B13: Consumo especifico (lt/kWh) | C13: 0.2771806554
A14: 8 | B14: Energía Alternativa
A15: 11 | B15: Potencia Instalada MVA
A16: 16 | B16: Potencia Instalada MW
A17: 22 | B17: Potencia a Temp. Media
B18: Categoría | C18: Gran Escala | F18: Factores de Emisiones
B19: Metodología Aplicable Línea de Base | C19: AM00045 (Ver pagina 11 de la metodología) | F19: Gas Natural | G19: =54300*0.00000105506 -> 0.057289758 | H19: gCO2/BTU
B20: % Crecimiento Acumulativo Anual | C20: =(H26/D26)^(1/4)-1 -> 0.06255341609 | F20: Diesel | G20: =72600*0.00000105506 -> 0.076597356 | H20: gCO2/BTU
B21: Factor Energía Vendida/Generación Bruta | C21: =SUM(F31:H31)/SUM(F26:H26) -> 0.8534502895
C23: Unidades | D23: 2014 | E23: =+D23+1 -> 2015 | F23: =+E23+1 -> 2016 | G23: 2017 | H23: 2018 | I23: 2019 | J23: 2020 | K23: 2021 | L23: 2022 | M23: 2023 | N23: 2024 | O23: 2025
B24: Generación Total | C24: MWh | D24: =+D25+D26 -> 45834.74914 | E24: =+E25+E26 -> 51150.008 | F24: 55241.41 | G24: 59494.526 | H24: 58424.89577 | I24: 62079.57258 | J24: 65962.86192 | K24: 70089.06427 | L24: 74473.37467 | M24: 79131.93866 | N24: 84081.91175 | O24: 89341.52256
B25: Generación Energía Renovable | C25: MWh
B26: Generación | C26: MWh | D26: 45834.74914 | E26: 51150.008 | F26: 55241.41 | G26: 59494.526 | H26: 58424.89577 | I26: =H26*(1+$C$20) -> 62079.57258 | J26: 65962.86192 | K26: 70089.06427 | L26: 74473.37467 | M26: 79131.93866 | N26: 84081.91175 | O26: 89341.52256
B27: Generación Fósil Gas | C27: MWh | D27: =+D26-D28 -> 45415.10947 | E27: =+E26-E28 -> 49661.70428 | F27: 53151.03324 | G27: 46841.12493 | H27: 45374.3242 | I27: =+I26-I28 -> 52115.0713 | J27: =+J26-J28 -> 55375.04704 | K27: 58838.9454 | L27: 62519.52243 | M27: 66430.33213 | N27: 70585.77634 | O27: 75001.15778
B28: Generación Fósil Diesel | C28: MWh | D28: =D30/$C$13 -> 419.6396745 | E28: =E30/$C$13 -> 1488.303718 | F28: 2090.376759 | G28: 12653.40107 | H28: 13050.57157 | I28: =(SUM($F$28:$H$28)/SUM($F$26:$H$26))*I26 -> 9964.501285 | J28: =(SUM($F$28:$H$28)/SUM($F$26:$H$26))*J26 -> 10587.81488 | K28: 11250.11887 | L28: 11953.85224 | M28: 12701.60653 | N28: 13496.13541 | O28: 14340.36478
B29: Combustible Fósil gas natural | C29: MPC | D29: 571963.428 | E29: 612920.549 | F29: 663158.386 | G29: 620081.935 | H29: 640147.5933 | I29: =+I27*$C$12 -> 689550.2777 | J29: =+J27*$C$12 -> 732684.0031 | K29: 778515.8904 | L29: 827214.7189 | M29: 878959.8254 | N29: 933941.7651 | O29: 992363.0129
B30: Combustible Fósil Diesel | C30: Miles de Litros | D30: 116.316 | E30: 412.529 | F30: 579.412 | G30: 3507.278001 | H30: 3617.36598 | I30: =+I28*$C$13 -> 2761.966997 | J30: =+J28*$C$13 -> 2934.737467 | K30: 3118.315321 | L30: 3313.376597 | M30: 3520.639622 | N30: 3740.867657 | O30: 3974.871708
B31: Energía Vendida | C31: MWh | D31: 37833.119 | E31: 41946.924 | F31: 46627.073 | G31: 48820.517 | H31: 52336.572 | I31: =I26*$C$21 -> 52981.82919 | J31: =J26*$C$21 -> 56296.0236 | K31: 59817.53219 | L31: 63559.32317 | M31: 67535.17596 | N31: 71759.73192 | O31: 76248.54829
B32: Cantidad de Usuarios | D32: 18188 | E32: 20295 | F32: 22711 | G32: 25616 | H32: 28263
B33: Consumo por usuario | C33: kWh/usuario-mes | D33: =(D31*1000/D32)/12 -> 173.3428588 | E33: =(E31*1000/E32)/12 -> 172.2383346 | F33: =(F31*1000/F32)/12 -> 171.0884337 | G33: =(G31*1000/G32)/12 -> 158.8216902 | H33: =(H31*1000/H32)/12 -> 154.3141563
B34: Demanda Máxima | C34: MW | F34: 10.15507 | G34: 11.06016641 | H34: 11.73985521
B35: Potencia Instalada | C35: MW | D35: 17.15 | E35: 17.15 | F35: 21.35 | G35: 21.35 | H35: =+C10 -> 21.35
B36: Pot. Efectiva a Temp. Media | C36: MW | D36: 15 | E36: 15 | F36: 19.05 | G36: 19.05 | H36: =+C11 -> 19.05
B37: Factor de Planta | D37: =D26/(D36*8760) -> 0.3488184866 | E37: =E26/(E36*8760) -> 0.3892694673 | F37: =F26/(F36*8760) -> 0.3310287156 | G37: =G26/(G36*8760) -> 0.3565150949 | H37: =H26/(H36*8760) -> 0.3501054409
B43: Calculo del Factor de Emisión
B44: EF CO2,j = COEF i,j = | C44: =+G19 -> 0.057289758 | D44: =+H19 -> gCO2/BTU | E44: Gas natural
B45: EF CO2,j = COEF i,j = | C45: =+G20 -> 0.076597356 | D45: =+H20 -> gCO2/BTU | E45: Diesel Oil
D46: =+D23 -> 2014 | E46: =+E23 -> 2015 | F46: =+F23 -> 2016 | G46: =+G23 -> 2017 | H46: =+H23 -> 2018 | I46: =+H46+1 -> 2019 | J46: 2020 | K46: 2021 | L46: 2022 | M46: 2023 | N46: 2024 | O46: 2025
B47: GEN j,bl = | C47: MWh | D47: =+D26 -> 45834.74914 | E47: =+E26 -> 51150.008 | F47: 55241.41 | G47: 59494.526 | H47: 58424.89577 | I47: =+I26 -> 62079.57258 | J47: 65962.86192 | K47: 70089.06427 | L47: 74473.37467 | M47: 79131.93866 | N47: 84081.91175 | O47: 89341.52256
B48: F i,j,bl = | C48: MMBTU (gas) | D48: =D29*1000*940/1000000 -> 537645.6223 | E48: =E29*1000*940/1000000 -> 576145.3161 | F48: =F29*1000*940/1000000 -> 623368.8828 | G48: 582877.0189 | H48: 601738.7377 | I48: 648177.261 | J48: 688722.9629 | K48: 731804.937 | L48: 777581.8357 | M48: 826222.2358 | N48: 877905.2592 | O48: 932821.2321
B49: F i,j,bl = | C49: MMBTU (Diesel) | D49: =+D30*33710/1000 -> 3921.01236 | E49: =+E30*33710/1000 -> 13906.35259 | F49: =+F30*33710/1000 -> 19531.97852 | G49: =+G30*33710/1000 -> 118230.3414 | H49: =+H30*33710/1000 -> 121941.4072 | I49: =+I30*33710/1000 -> 93105.90745 | J49: 98930.00002 | K49: 105118.4095 | L49: 111693.9251 | M49: 118680.7617 | N49: 126104.6487 | O49: 133992.9253
B50: EF bl,ini = | C50: tCO2/MWh | D50: =(D48*$C$44+D49*$C$45)/D47 -> 0.678566532 | E50: =(E48*$C$44+E49*$C$45)/E47 -> 0.6661272774 | F50: 0.6735662677 | G50: 0.7134944635 | H50: 0.749917573 | I50: 0.713045901 | J50: 0.713045901 | K50: 0.713045901 | L50: 0.713045901 | M50: 0.713045901 | N50: 0.713045901 | O50: 0.713045901
B51: BE y = | C51: tCO2/año | D51: =+D47*D50 -> 31101.92677 | E51: =+E47*E50 -> 34072.41557 | F51: =+F47*F50 -> 37208.75035 | G51: 42449.01491 | H51: 43813.85604 | I51: 44265.58476 | J51: 47034.54831 | K51: 49976.71998 | L51: 53102.93454 | M51: 56424.7045 | N51: 59954.26252 | O51: 63704.60645
B53: Evolución Necesidad de Potencia
B54: Potencia Instalada | C54: MW | D54: =+D35 -> 17.15 | E54: 17.15 | F54: 21.35 | G54: 21.35 | H54: 21.35 | I54: =+H54 -> 21.35 | J54: =+I54+2 -> 23.35 | K54: =+J54 -> 23.35 | L54: =+K54+2 -> 25.35 | M54: 25.35 | N54: =+M54+2 -> 27.35 | O54: 27.35
B55: Pot. Efectiva a Temp. Media | C55: MW | D55: 15 | E55: 15 | F55: 19.05 | G55: 19.05 | H55: 19.05 | I55: =+H55 -> 19.05 | J55: =J54*($I$55/$I$54) -> 20.83454333 | K55: =K54*($I$55/$I$54) -> 20.83454333 | L55: 22.61908665 | M55: 22.61908665 | N55: 24.40362998 | O55: 24.40362998
B56: Factor de Planta | D56: 0.3488184866 | E56: 0.3892694673 | F56: 0.3310287156 | G56: 0.3565150949 | H56: =+H37 -> 0.3501054409 | I56: =I26/(I55*8760) -> 0.3720057322 | J56: =J26/(J55*8760) -> 0.3614193482 | K56: 0.3840273631 | L56: 0.3758563252 | M56: 0.3993674223 | N56: 0.3933181974 | O56: 0.4179215942
B57: Adiciones de capacidad | C57: MW | I57: =+I54-H54 -> 0 | J57: 2 | K57: 0 | L57: =+L54-K54 -> 2 | M57: =+M54-L54 -> 0 | N57: =+N54-M54 -> 2 | O57: =+O54-N54 -> 0
B60: Donde:
B61: GEN j,bl = | C61: MWh | D61: Electricidad (MWh) generada por el sistema aislado de la fuente "j"
B62: F i,j,bl = | C62: MMBTU | D62: Cantidad de Combustible i (masa o volumen) consumido por la fuente "j"
B63: EF bl,ini = | C63: tCO2/MWh | D63: Línea de Base del Factor de Emisiones del sistema aislado (tCO2e/MWh) al momento de la interconexión a la red
B64: COEF i,j = | C64: gCO2/BTU | D64: Coeficiente de emisiones de CO2 del combustible
B65: BE y = | C65: tCO2/año | D65: Línea de Base de emisiones
B74: ACTIVIDADES DEL PROYECTO
B75: Las emisiones de referencia se calculan considerando el consumo de combustible que se hubiera utilizado para generar la cantidad equivalente de energía en ausencia de la actividad del proyecto.
B80: Emisiones del Proyecto
B81: Utilizamos el factor de emisiones del Sistema Interconectado Nacional (SIN) | C81: 0.48
B84: Donde:
B85: EG y = | C85: Electricidad abastecida al sistema Aislado por la red (SIN) en el año y (MWh)
B86: EF p = | C86: Factor de Emisión de Red (SIN) método simple promedio
B87: TL = | C87: 0.02681488095 | D87: Perdidas de energía en la red de transmisión del SIN
B88: PE sf6,y = | C88: 0 | D88: La red de transmisión nueva no tiene SF6
D90: 2014 | E90: =+D90+1 -> 2015 | F90: =+E90+1 -> 2016 | G90: 2017 | H90: 2018 | I90: 2019 | J90: 2020 | K90: 2021 | L90: 2022 | M90: 2023 | N90: 2024 | O90: 2025
B91: EG y(*) = | C91: MWh | J91: =+J26*0.7/12*1 -> 3847.833612 | K91: =+K26*0.7 -> 49062.34499 | L91: =+L26*0.7 -> 52131.36227 | M91: =+M26*0.7 -> 55392.35706 | N91: =+N26*0.7 -> 58857.33822 | O91: =+O26*0.7 -> 62539.06579
B92: =+B87 -> TL = | C92: % | J92: =+C87 -> 0.02681488095 | K92: =+C87 -> 0.02681488095 | L92: =+K92 -> 0.02681488095 | M92: 0.02681488095 | N92: 0.02681488095 | O92: 0.02681488095
B93: EF CO2,y = | C93: tCO2/MWh | J93: =+C81 -> 0.48 | K93: =+C81 -> 0.48 | L93: 0.48 | M93: 0.48 | N93: 0.48 | O93: 0.48
B94: PE y = | C94: tCO2/año | J94: =J91*J93*(J92+1) -> 1896.48615 | K94: 24181.41404 | L94: 25694.0441 | M94: 27301.29433 | N94: 29009.08356 | O94: 30823.70083
B95: (*) Asumimos que un 70% de la demanda de energía vendría de la red (SIN)
D98: =+D90 -> 2014 | E98: 2015 | F98: 2016 | G98: 2017 | H98: 2018 | I98: 2019 | J98: 2020 | K98: 2021 | L98: 2022 | M98: 2023 | N98: 2024 | O98: 2025
B99: Sin Proyecto
B100: Emisiones Planta Sistema Aislado | C100: tCO2/año | D100: =+D51 -> 31101.92677 | E100: 34072.41557 | F100: 37208.75035 | G100: 42449.01491 | H100: 43813.85604 | I100: 44265.58476 | J100: 47034.54831 | K100: 49976.71998 | L100: 53102.93454 | M100: 56424.7045 | N100: 59954.26252 | O100: 63704.60645
B101: Con Proyecto
B102: Generación Combustible Fosil Gas | C102: MWh | D102: =(D27/D26)*(D26-D91) -> 45415.10947 | E102: =(E27/E26)*(E26-E91) -> 49661.70428 | F102: 53151.03324 | G102: 46841.12493 | H102: 45374.3242 | I102: 52115.0713 | J102: 52144.83596 | K102: 17651.68362 | L102: 18755.85673 | M102: 19929.09964 | N102: 21175.7329 | O102: 22500.34733
B103: Combustible Fósil Gas | C103: MPC | D103: =D29 -> 571963.428 | E103: =E29 -> 612920.549 | F103: 663158.386 | G103: 620081.935 | H103: 640147.5933 | I103: =+I102*$C$12 -> 689550.2777 | J103: =+J102*$C$12 -> 689944.1029 | K103: 233554.7671 | L103: 248164.4157 | M103: 263687.9476 | N103: 280182.5295 | O103: 297708.9039
B104: Generación Combustible Fosil Diesel | C104: MWh | D104: =(D28/D26)*(D26-D91) -> 419.6396745 | E104: =(E28/E26)*(E26-E91) -> 1488.303718 | F104: 2090.376759 | G104: 12653.40107 | H104: 13050.57157 | I104: 9964.501285 | J104: 9970.192345 | K104: 3375.035661 | L104: 3586.155671 | M104: 3810.481959 | N104: 4048.840622 | O104: 4302.109434
B105: Combustible Fósil Diesel | C105: Miles de Litros | D105: =+D30 -> 116.316 | E105: =+E30 -> 412.529 | F105: 579.412 | G105: 3507.278001 | H105: 3617.36598 | I105: =+I104*$C$13 -> 2761.966997 | J105: =+J104*$C$13 -> 2763.544448 | K105: 935.4945964 | L105: 994.0129791 | M105: 1056.191887 | N105: 1122.260297 | O105: 1192.461512
B106: Emisiones Planta Interconectada | C106: tCO2/año | D106: =+(D26-D91)*D50 -> 31101.92677 | E106: 34072.41557 | F106: 37208.75035 | G106: 42449.01491 | H106: 43813.85604 | I106: 44265.58476 | J106: 44290.86632 | K106: 14993.01599 | L106: 15930.88036 | M106: 16927.41135 | N106: 17986.27875 | O106: 19111.38193
B107: Emisiones del Proyecto | C107: tCO2/año | D107: =D94 -> 0 | E107: 0 | F107: 0 | G107: 0 | H107: 0 | I107: 0 | J107: 1896.48615 | K107: 24181.41404 | L107: 25694.0441 | M107: 27301.29433 | N107: 29009.08356 | O107: 30823.70083
B108: Total Emisiones con Proyecto | C108: tCO2/año | D108: =+D107+D106 -> 31101.92677 | E108: 34072.41557 | F108: 37208.75035 | G108: 42449.01491 | H108: 43813.85604 | I108: 44265.58476 | J108: 46187.35247 | K108: 39174.43004 | L108: 41624.92446 | M108: 44228.70568 | N108: 46995.36231 | O108: 49935.08276
B109: Factor Emisiones con Proyecto | C109: tCO2/MWh | D109: =+D108/D24 -> 0.678566532 | E109: =+E108/E24 -> 0.6661272774 | F109: 0.6735662677 | G109: 0.7134944635 | H109: 0.749917573 | I109: 0.713045901 | J109: 0.7002023734 | K109: 0.5589235703 | L109: 0.5589235703 | M109: 0.5589235703 | N109: 0.5589235703 | O109: 0.5589235703
B111: Emisiones Reducidas | C111: tCO2/año | D111: =+D100-D108 -> 0 | E111: 0 | F111: 0 | G111: 0 | H111: 0 | I111: 0 | J111: 847.1958347 | K111: 10802.28994 | L111: 11478.01008 | M111: 12195.99882 | N111: 12958.90021 | O111: 13769.52368

Sheet Valles
B2: FICHA TECNICA DEL SISTEMA AISLADO | F2: PROYECTOS PREVISTOS
C3: 20
A4: 2 | B4: Departamento | C4: =VLOOKUP($C$3,'[11]Potencia Inst y Efect'!$A$9:$W$40,A4,0) -> Santa Cruz | F4: NO TIENE PROYECTOS PREVISTOS, SOLO EXPANSION COMB. FOSIL | K4: X
A5: 3 | B5: Provincia | C5: =VLOOKUP($C$3,'[11]Potencia Inst y Efect'!$A$9:$W$40,A5,0) -> Vallegrande
A6: 4 | B6: Sistema Eléctrico | C6: =VLOOKUP($C$3,'[11]Potencia Inst y Efect'!$A$9:$W$40,A6,0) -> Valles Cruceños
A7: 5 | B7: Empresa | C7: =VLOOKUP($C$3,'[11]Potencia Inst y Efect'!$A$9:$W$40,A7,0) -> CRE Ltda.
A8: 6 | B8: Combustible | C8: =VLOOKUP($C$3,'[11]Potencia Inst y Efect'!$A$9:$W$40,A8,0) -> Gas
A9: 10 | B9: Potencia Instalada MVA | C9: =VLOOKUP($C$3,'[11]Potencia Inst y Efect'!$A$9:$W$40,A9,0) -> 14.5475
A10: 15 | B10: Potencia Instalada MW | C10: =VLOOKUP($C$3,'[11]Potencia Inst y Efect'!$A$9:$W$40,A10,0) -> 11.638
A11: 21 | B11: Potencia a Temp. Media | C11: =VLOOKUP($C$3,'[11]Potencia Inst y Efect'!$A$9:$W$40,A11,0) -> 9.56
B12: Consumo especifico (pc/kWh) | C12: =SUM(F29:H29)/SUM(F27:H27) -> 10.91968519
B13: Consumo especifico (litros/kWh) | C13: 0.2771806554
A14: 8 | B14: Energía Alternativa
A15: 11 | B15: Potencia Instalada MVA
A16: 16 | B16: Potencia Instalada MW
A17: 22 | B17: Potencia a Temp. Media
B18: Categoría | C18: Pequeña Escala | F18: Factores de Emisiones
B19: Metodología Aplicable Línea de Base | C19: AMS I.A | F19: Gas Natural | G19: =54300*0.00000105506 -> 0.057289758 | H19: gCO2/BTU
B20: % Crecimiento Acumulativo Anual | C20: =(H26/D26)^(1/4)-1 -> 0.0822366112 | F20: Diesel | G20: =72600*0.00000105506 -> 0.076597356 | H20: gCO2/BTU
B21: Factor Energía Vendida/Generación Bruta | C21: =SUM(F31:H31)/SUM(F26:H26) -> 0.8393163267
C23: Unidades | D23: 2014 | E23: =+D23+1 -> 2015 | F23: =+E23+1 -> 2016 | G23: 2017 | H23: 2018 | I23: 2019 | J23: 2020 | K23: 2021 | L23: 2022 | M23: 2023 | N23: 2024 | O23: 2025
B24: Generación Total | C24: MWh | D24: =+D25+D26 -> 24962.853 | E24: =+E25+E26 -> 27356.741 | F24: 30774.99453 | G24: 33037.838 | H24: 34243.891 | I24: =H24*(1+$C$20) -> 37059.99255 | J24: =I24*(1+$C$20) -> 40107.68075 | K24: 43406.0005 | L24: 46975.56288 | M24: 50838.67398 | N24: 55019.47425 | O24: 59544.08936
B25: Generación Energía Renovable | C25: MWh
B26: Generación | C26: MWh | D26: 24962.853 | E26: 27356.741 | F26: 30774.99453 | G26: 33037.838 | H26: 34243.891 | I26: =+I24-I25 -> 37059.99255 | J26: =+J24-J25 -> 40107.68075 | K26: 43406.0005 | L26: 46975.56288 | M26: 50838.67398 | N26: 55019.47425 | O26: 59544.08936
B27: Generación Fósil Gas | C27: MWh | D27: =+D26-D28 -> 24962.853 | E27: =+E26-E28 -> 27356.741 | F27: 30666.11247 | G27: 33032.8593 | H27: 34225.31106 | I27: 37047.01602 | J27: 40093.63708 | K27: 43390.80192 | L27: 46959.11443 | M27: 50820.87286 | N27: 55000.20922 | O27: 59523.24005
B28: Generación Fósil Diesel | C28: MWh | D28: =D30/$C$13 -> 0 | E28: =E30/$C$13 -> 0 | F28: 108.8820573 | G28: 4.978702421 | H28: 18.5799402 | I28: =(SUM($G$28:$H$28)/SUM($G$26:$H$26))*I26 -> 12.97652621 | J28: =(SUM($G$28:$H$28)/SUM($G$26:$H$26))*J26 -> 14.04367175 | K28: 15.19857572 | L28: 16.44845509 | M28: 17.80112029 | N28: 19.2650241 | O28: 20.8493144
B29: Combustible Fósil gas natural | C29: MPC | D29: 284155.401 | E29: 313266.45 | F29: 353773.35 | G29: 355513.2846 | H29: 360015.7066 | I29: =+I27*$C$12 -> 404541.7523 | J29: =+J27*$C$12 -> 437809.8951 | K29: 473813.8972 | L29: 512778.7465 | M29: 554947.9329 | N29: 600584.9702 | O29: 649975.0429
B30: Combustible Fósil Diesel | C30: Miles de Litros | D30: 0 | E30: 0 | F30: 30.18 | G30: 1.38 | H30: 5.15 | I30: =+I28*$C$13 -> 3.596842039 | J30: =+J28*$C$13 -> 3.89263414 | K30: 4.21275118 | L30: 4.559193561 | M30: 4.934126189 | N30: 5.339892006 | O30: 5.779026629
B31: Energía Vendida | C31: MWh | D31: 21251.086 | E31: 23113.885 | F31: 25842.942 | G31: 27838.267 | H31: 28619.4 | I31: =I26*$C$21 -> 31105.05681 | J31: =J26*$C$21 -> 33663.03128 | K31: 36431.36489 | L31: 39427.35688 | M31: 42669.7291 | N31: 46178.74302 | O31: 49976.32636
B32: Cantidad de Usuarios | D32: 18160 | E32: 18933 | F32: 20497 | G32: 21942 | H32: 23104
B33: Consumo por usuario | C33: kWh/usuario-mes | D33: =(D31*1000/D32)/12 -> 97.51783223 | E33: =(E31*1000/E32)/12 -> 101.7354399 | F33: =(F31*1000/F32)/12 -> 105.0679856 | G33: =(G31*1000/G32)/12 -> 105.7267151 | H33: =(H31*1000/H32)/12 -> 103.226714
B34: Demanda Máxima | C34: MW | F34: 6.28572 | G34: 6.443231 | H34: 6.340804
B35: Potencia Instalada | C35: MW | D35: 7.64 | E35: 7.64 | F35: 9.64 | G35: 11.638 | H35: =+C10 -> 11.638
B36: Pot. Efectiva a Temp. Media | C36: MW | D36: 6.48 | E36: 6.48 | F36: 8.13 | G36: 8.5 | H36: =+C11 -> 9.56
B37: Factor de Planta | D37: =D26/(D36*8760) -> 0.4397593755 | E37: =E26/(E36*8760) -> 0.4819314258 | F37: =F26/(F36*8760) -> 0.4321189704 | G37: =G26/(G36*8760) -> 0.4436991405 | H37: =H26/(H36*8760) -> 0.4089037633
B41: Calculo del Factor de Emisión
B42: EF CO2,j = COEF i,j = | C42: =+G19 -> 0.057289758 | D42: =+H19 -> gCO2/BTU | E42: Gas natural
B43: EF CO2,j = COEF i,j = | C43: =+G20 -> 0.076597356 | D43: =+H20 -> gCO2/BTU | E43: Diesel Oil
D44: =+D23 -> 2014 | E44: =+E23 -> 2015 | F44: =+F23 -> 2016 | G44: =+G23 -> 2017 | H44: =+H23 -> 2018 | I44: =+H44+1 -> 2019 | J44: 2020 | K44: 2021 | L44: 2022 | M44: 2023 | N44: 2024 | O44: 2025
B45: GEN j,bl = | C45: MWh | D45: =+D26 -> 24962.853 | E45: =+E26 -> 27356.741 | F45: 30774.99453 | G45: 33037.838 | H45: 34243.891 | I45: 37059.99255 | J45: 40107.68075 | K45: 43406.0005 | L45: 46975.56288 | M45: 50838.67398 | N45: 55019.47425 | O45: 59544.08936
B46: F i,j,bl = | C46: Mpc (gas) | D46: =+D29 -> 284155.401 | E46: =+E29 -> 313266.45 | F46: 353773.35 | G46: 355513.2846 | H46: 360015.7066 | I46: 404541.7523 | J46: 437809.8951 | K46: 473813.8972 | L46: 512778.7465 | M46: 554947.9329 | N46: 600584.9702 | O46: 649975.0429
B47: F i,j,bl = | C47: Miles de Litros (Diesel) | D47: =+D30 -> 0 | E47: 0 | F47: 30.18 | G47: 1.38 | H47: 5.15 | I47: 3.596842039 | J47: 3.89263414 | K47: 4.21275118 | L47: 4.559193561 | M47: 4.934126189 | N47: 5.339892006 | O47: 5.779026629
B48: NCV j = | C48: Btu/pc (gas) | D48: 940 | E48: =+D48 -> 940 | F48: =+E48 -> 940 | G48: 940 | H48: 940 | I48: =+H48 -> 940 | J48: =+I48 -> 940 | K48: 940 | L48: 940 | M48: 940 | N48: 940 | O48: 940
B49: NCV j = | C49: Btu/litro (Diesel) | D49: 33710 | E49: =+D49 -> 33710 | F49: 33710 | G49: 33710 | H49: 33710 | I49: =+H49 -> 33710 | J49: 33710 | K49: 33710 | L49: 33710 | M49: 33710 | N49: 33710 | O49: 33710
B50: EF co2,j = | C50: gCO2/BTU (gas) | D50: =+C42 -> 0.057289758 | E50: =+D50 -> 0.057289758 | F50: 0.057289758 | G50: 0.057289758 | H50: 0.057289758 | I50: =+H50 -> 0.057289758 | J50: 0.057289758 | K50: 0.057289758 | L50: 0.057289758 | M50: 0.057289758 | N50: 0.057289758 | O50: 0.057289758
B51: EF co2,j = | C51: gCO2/BTU (Diesel) | D51: =+C43 -> 0.076597356 | E51: =+D51 -> 0.076597356 | F51: 0.076597356 | G51: 0.076597356 | H51: 0.076597356 | I51: =+H51 -> 0.076597356 | J51: 0.076597356 | K51: 0.076597356 | L51: 0.076597356 | M51: 0.076597356 | N51: 0.076597356 | O51: 0.076597356
B52: BE y = | C52: tCO2/año | D52: =((D46*D48*D50)+(D47*D49*D51))/1000 -> 15302.44251 | E52: =((E46*E48*E50)+(E47*E49*E51))/1000 -> 16870.14156 | F52: 19129.46192 | G52: 19148.79713 | H52: 19400.99774 | I52: 21794.82054 | J52: 23587.15272 | K52: 25526.88023 | L52: 27626.12435 | M52: 29898.0032 | N52: 32356.71367 | O52: 35017.62015
B53: EF bl = | C53: tCO2/MWh | D53: =D52/D45 -> 0.6130085575 | E53: =E52/E45 -> 0.6166721966 | F53: =SUM(D52:F52)/SUM(D45:F45) -> 0.6173933453 | G53: =SUM(E52:G52)/SUM(E45:G45) -> 0.6048991837 | H53: =SUM(F52:H52)/SUM(F45:H45) -> 0.5882233743 | I53: =I52/I45 -> 0.5880956535 | J53: =J52/J45 -> 0.5880956535 | K53: 0.5880956535 | L53: 0.5880956535 | M53: 0.5880956535 | N53: 0.5880956535 | O53: 0.5880956535
B55: Evolución Necesidad de Potencia
B56: Potencia Instalada | C56: MW | D56: =+D35 -> 7.64 | E56: 7.64 | F56: 9.64 | G56: 11.638 | H56: 11.638 | I56: =+H56+1 -> 12.638 | J56: 13.638 | K56: 14.638 | L56: 15.638 | M56: 16.638 | N56: 17.638 | O56: 18.638
B57: Pot. Efectiva a Temp. Media | C57: MW | D57: 6.48 | E57: 6.48 | F57: 8.13 | G57: 8.5 | H57: 9.56 | I57: =I56*($H$57/$H$56) -> 10.38144698 | J57: 11.20289397 | K57: 12.02434095 | L57: =L56*($H$57/$H$56) -> 12.84578794 | M57: =M56*($H$57/$H$56) -> 13.66723492 | N57: 14.4886819 | O57: 15.31012889
B58: Factor de Planta | D58: 0.4397593755 | E58: 0.4819314258 | F58: 0.4321189704 | G58: 0.4436991405 | H58: 0.4089037633 | I58: =I26/(I57*8760) -> 0.4075147485 | J58: 0.4086892531 | K58: 0.4120827002 | L58: 0.4174525693 | M58: 0.4246288024 | N58: 0.4334943608 | O58: 0.4439721262
B59: Adiciones de capacidad | C59: MW | I59: =+I56-H56 -> 1 | J59: 1 | K59: =+K56-J56 -> 1 | L59: =+L56-K56 -> 1 | M59: =+M56-L56 -> 1 | N59: =+N56-M56 -> 1 | O59: =+O56-N56 -> 1
B62: Donde
B63: GEN j,bl = | C63: MWh | D63: Electricidad (MWh) generada por el sistema aislado de la fuente "j"
B64: FC j,y = | C64: Mpc/Miles de litros | D64: Cantidad de Combustible i (masa o volumen) consumido por la fuente "j"
B65: NCV j = | C65: Btu/pc - Btu/litro | D65: Poder Calorífico Inferior del combustible "j"
B66: EF bl = | C66: tCO2/MWh | D66: Línea de Base del Factor de Emisiones del sistema aislado
B67: EF co2,j = | C67: gCO2/BTU | D67: Coeficiente de emisiones de CO2 del combustible
B68: BE y = | C68: tCO2/año | D68: Línea de Base de emisiones

Sheet Camiri
B2: FICHA TECNICA DEL SISTEMA AISLADO | F2: PROYECTOS PREVISTOS
C3: 16
A4: 2 | B4: Departamento | C4: =VLOOKUP($C$3,'[11]Potencia Inst y Efect'!$A$9:$W$40,A4,0) -> Santa Cruz | F4: Electrificación mediante la extensión de una red (nacional, regional o mini-red) | K4: X
A5: 3 | B5: Provincia | C5: =VLOOKUP($C$3,'[11]Potencia Inst y Efect'!$A$9:$W$40,A5,0) -> Cordillera
A6: 4 | B6: Sistema Eléctrico | C6: =VLOOKUP($C$3,'[11]Potencia Inst y Efect'!$A$9:$W$40,A6,0) -> Camiri
A7: 5 | B7: Empresa | C7: =VLOOKUP($C$3,'[11]Potencia Inst y Efect'!$A$9:$W$40,A7,0) -> CRE Ltda. | F7: Proyecto: | G7: Conexión al SIN Camiri
A8: 6 | B8: Combustible | C8: =VLOOKUP($C$3,'[11]Potencia Inst y Efect'!$A$9:$W$40,A8,0) -> Gas | F8: Línea: | G8: 115 kV (Padilla - Monteagudo - Camiri)
A9: 10 | B9: Potencia Instalada MVA | C9: =VLOOKUP($C$3,'[11]Potencia Inst y Efect'!$A$9:$W$40,A9,0) -> 15.83 | G9: Mes/Año de puesta en operación | H9: 2021-04-01
A10: 15 | B10: Potencia Instalada MW | C10: =VLOOKUP($C$3,'[11]Potencia Inst y Efect'!$A$9:$W$40,A10,0) -> 12.674 | G10: Categoría | H10: Gran Escala
A11: 21 | B11: Potencia a Temp. Media | C11: =VLOOKUP($C$3,'[11]Potencia Inst y Efect'!$A$9:$W$40,A11,0) -> 11.75 | G11: Metodología Aplicable | H11: AM00045
B12: Consumo especifico (pc/kWh) | C12: =SUM(G26:H26)/SUM(G25:H25) -> 9.992075895
A13: 8 | B13: Energía Alternativa
A14: 11 | B14: Potencia Instalada MVA
A15: 16 | B15: Potencia Instalada MW
A16: 22 | B16: Potencia a Temp. Media
B17: Categoría | C17: Gran Escala | F17: Factores de Emisiones
B18: Metodología Aplicable Línea de Base | C18: AM00045 (Ver pagina 11 de la metodología) | F18: Gas Natural | G18: =54300*0.00000105506 -> 0.057289758 | H18: gCO2/BTU
B19: % Crecimiento Acumulativo Anual | C19: =(H25/D25)^(1/4)-1 -> 0.0538487063 | F19: Diesel | G19: =72600*0.00000105506 -> 0.076597356 | H19: gCO2/BTU
B20: Factor Energía Vendida/Generación Bruta | C20: =SUM(F28:H28)/SUM(F25:H25) -> 0.8360200276
C22: Unidades | D22: 2014 | E22: =+D22+1 -> 2015 | F22: =+E22+1 -> 2016 | G22: 2017 | H22: 2018 | I22: 2019 | J22: 2020 | K22: 2021 | L22: 2022 | M22: 2023 | N22: 2024 | O22: 2025
B23: Generación Total | C23: MWh | D23: =+D24+D25 -> 26931.019 | E23: =+E24+E25 -> 29769.716 | F23: 31023.122 | G23: 32518.519 | H23: 33217.41659 | I23: =H23*(1+$C$19) -> 35006.1315 | J23: =I23*(1+$C$19) -> 36891.1664 | K23: 38877.70798 | L23: 40971.22226 | M23: 43177.46957 | N23: 45502.52045 | O23: 47952.77231
B24: Generación Energía Renovable | C24: MWh
B25: Generación | C25: MWh | D25: 26931.019 | E25: 29769.716 | F25: 31023.122 | G25: 32518.519 | H25: 33217.41659 | I25: =+I23-I24 -> 35006.1315 | J25: =+J23-J24 -> 36891.1664 | K25: 38877.70798 | L25: 40971.22226 | M25: 43177.46957 | N25: 45502.52045 | O25: 47952.77231
B26: Combustible Fosil gas natural | C26: MPC | D26: 294214.1403 | E26: 320543.5509 | F26: 324808.4193 | G26: 317579.2717 | H26: 339259.1858 | I26: =+I25*$C$12 -> 349783.9228 | J26: =+J25*$C$12 -> 368619.3345 | K26: 388469.0088 | L26: 409387.5624 | M26: 431432.553 | N26: 454664.6378 | O26: 479147.7403
B27: Combustible Fosil Diesel | C27: Miles de Litros | E27: 26.829 | F27: 13.922
B28: Energía Vendida | C28: MWh | D28: 23095.171 | E28: 25545.29 | F28: 26937.045 | G28: 27085.859 | H28: 26869.606 | I28: =I25*$C$20 -> 29265.82703 | J28: =J25*$C$20 -> 30841.75395 | K28: 32502.5425 | L28: 34252.76236 | M28: 36097.22931 | N28: 38041.0184 | O28: 40089.47803
B29: Cantidad de Usuarios | D29: 11277 | E29: 11944 | F29: 13230 | G29: 14167 | H29: 14957
B30: Consumo por usuario | C30: kWh/usuario-mes | D30: =(D28*1000/D29)/12 -> 170.665743 | E30: =(E28*1000/E29)/12 -> 178.2295853 | F30: =(F28*1000/F29)/12 -> 169.6714853 | G30: =(G28*1000/G29)/12 -> 159.3248335 | H30: =(H28*1000/H29)/12 -> 149.7047425
B31: Demanda Máxima | C31: MW | F31: 6.075 | G31: 6.03993 | H31: 6.378
B32: Potencia Instalada | C32: MW | D32: 7.25 | E32: 7.9 | F32: 9.06 | G32: 10.866 | H32: =+C10 -> 12.674
B33: Pot. Efectiva a Temp. Media | C33: MW | D33: 6.5 | E33: 7.1 | F33: 8.25 | G33: 10 | H33: =+C11 -> 11.75
B34: Factor de Planta | D34: =D25/(D33*8760) -> 0.4729718827 | E34: =E25/(E33*8760) -> 0.4786435784 | F34: =F25/(F33*8760) -> 0.4292669434 | G34: =G25/(G33*8760) -> 0.3712159703 | H34: =H25/(H33*8760) -> 0.3227185135
B40: Calculo del Factor de Emisión
B41: EF CO2,j = COEF i,j = | C41: =+G18 -> 0.057289758 | D41: =+H18 -> gCO2/BTU | E41: Gas natural
B42: EF CO2,j = COEF i,j = | C42: =+G19 -> 0.076597356 | D42: =+H19 -> gCO2/BTU | E42: Diesel Oil
D43: =+D22 -> 2014 | E43: =+E22 -> 2015 | F43: =+F22 -> 2016 | G43: =+G22 -> 2017 | H43: =+H22 -> 2018 | I43: =+H43+1 -> 2019 | J43: 2020 | K43: 2021 | L43: 2022 | M43: 2023 | N43: 2024 | O43: 2025
B44: GEN j,bl = | C44: MWh | D44: =+D25 -> 26931.019 | E44: =+E25 -> 29769.716 | F44: 31023.122 | G44: 32518.519 | H44: 33217.41659 | I44: 35006.1315 | J44: 36891.1664 | K44: 38877.70798 | L44: 40971.22226 | M44: 43177.46957 | N44: 45502.52045 | O44: 47952.77231
B45: F i,j,bl = | C45: MMBTU (gas) | D45: =D26*1000*940/1000000 -> 276561.2919 | E45: =E26*1000*940/1000000 -> 301310.9379 | F45: =F26*1000*940/1000000 -> 305319.9141 | G45: 298524.5154 | H45: 318903.6346 | I45: 328796.8874 | J45: 346502.1744 | K45: 365160.8683 | L45: 384824.3086 | M45: 405546.5998 | N45: 427384.7595 | O45: 450398.8759
B46: F i,j,bl = | C46: MMBTU (Diesel) | D46: =+D27*33710/1000 -> 0 | E46: =+E27*33710/1000 -> 904.40559 | F46: =+F27*33710/1000 -> 469.31062 | G46: =+G27*33710/1000 -> 0 | H46: =+H27*33710/1000 -> 0
B47: EF bl,ini = | C47: tCO2/MWh | D47: =(D45*$C$41+D46*$C$42)/D44 -> 0.5883226878 | E47: =(E45*$C$41+E46*$C$42)/E44 -> 0.5821790772 | F47: =(SUM(D45:F45)*$C$41+SUM(D46:F46)*$C$42)/SUM(D44:F44) -> 0.5779851565 | G47: =(SUM(E45:G45)*$C$41+SUM(E46:G46)*$C$42)/SUM(E44:G44) -> 0.556859922 | H47: =(SUM(F45:H45)*$C$41+SUM(F46:H46)*$C$42)/SUM(F44:H44) -> 0.5467184423 | I47: =+H47 -> 0.5467184423 | J47: =+I47 -> 0.5467184423 | K47: 0.5467184423 | L47: 0.5467184423 | M47: 0.5467184423 | N47: 0.5467184423 | O47: 0.5467184423
B48: BE y = | C48: tCO2/año | D48: =+D44*D47 -> 15844.12948 | E48: =+E44*E47 -> 17331.30579 | F48: =+F44*F47 -> 17930.90403 | G48: 18108.25995 | H48: 18160.57426 | I48: 19138.49769 | J48: 20169.08103 | K48: 21255.15995 | L48: 22399.72281 | M48: 23605.91891 | N48: 24877.0671 | O48: 26216.66498
B50: Evolución Necesidad de Potencia
B51: Potencia Instalada | C51: MW | D51: =+D32 -> 7.25 | E51: 7.9 | F51: 9.06 | G51: 10.866 | H51: 12.674 | I51: =+H51 -> 12.674 | J51: =+I51 -> 12.674 | K51: 12.674 | L51: 12.674 | M51: 12.674 | N51: 12.674 | O51: 12.674
B52: Pot. Efectiva a Temp. Media | C52: MW | D52: 6.5 | E52: 7.1 | F52: 8.25 | G52: 10 | H52: 11.75 | I52: =+H52 -> 11.75 | J52: 11.75 | K52: 11.75 | L52: 11.75 | M52: 11.75 | N52: 11.75 | O52: 11.75
B53: Factor de Planta | D53: 0.4729718827 | E53: 0.4786435784 | F53: 0.4292669434 | G53: 0.3712159703 | H53: 0.3227185135 | I53: =I25/(I52*8760) -> 0.3400964879 | J53: =J25/(J52*8760) -> 0.3584102438 | K53: 0.3777101718 | L53: 0.3980493759 | M53: 0.4194838198 | N53: 0.4420724808 | O53: 0.465877512
B54: Adiciones de capacidad | C54: MW | L54: =+L51-K51 -> 0 | M54: =+M51-L51 -> 0 | N54: =+N51-M51 -> 0 | O54: =+O51-N51 -> 0
B57: Donde
B58: GEN j,bl = | C58: MWh | D58: Electricidad (MWh) generada por el sistema aislado de la fuente "j"
B59: F i,j,bl = | C59: MMBTU | D59: Cantidad de Combustible i (masa o volumen) consumido por la fuente "j"
B60: EF bl,ini = | C60: tCO2/MWh | D60: Línea de Base del Factor de Emisiones del sistema aislado (tCO2e/MWh) al momento de la interconexión a la red
B61: COEF i,j = | C61: gCO2/BTU | D61: Coeficiente de emisiones de CO2 del combustible
B62: BE y = | C62: tCO2/año | D62: Línea de Base de emisiones
B71: ACTIVIDADES DEL PROYECTO
B72: Las emisiones de referencia se calculan considerando el consumo de combustible que se hubiera utilizado para generar la cantidad equivalente de energía en ausencia de la actividad del proyecto.
B77: Emisiones del Proyecto
B78: Utilizamos el factor de emisiones del Sistema Interconectado Nacional (SIN) | C78: 0.48
B81: Donde:
B82: EG y = | C82: Electricidad abastecida al sistema Aislado por la red (SIN) en el año y (mwH)
B83: EF p = | C83: Factor de Emisión de Red (SIN) método simple promedio
B84: TL = | C84: 0.02681488095 | D84: Perdidas de energía en la red de transmisión del SIN
B85: PE sf6,y = | C85: 0 | D85: La red de transmisión nueva no tiene SF6
D87: =+D43 -> 2014 | E87: =+E43 -> 2015 | F87: 2016 | G87: 2017 | H87: 2018 | I87: 2019 | J87: 2020 | K87: 2021 | L87: 2022 | M87: 2023 | N87: 2024 | O87: 2025
B88: EG y(*) = | C88: MWh | K88: =+K25*0.7/12*9 -> 20410.79669 | L88: =+L25*0.7 -> 28679.85558 | M88: =+M25*0.7 -> 30224.2287 | N88: =+N25*0.7 -> 31851.76432 | O88: =+O25*0.7 -> 33566.94062
B89: =+B84 -> TL = | C89: % | K89: =+C84 -> 0.02681488095 | L89: =+K89 -> 0.02681488095 | M89: 0.02681488095 | N89: 0.02681488095 | O89: 0.02681488095
B90: EF CO2,y = | C90: tCO2/MWh | K90: =+C78 -> 0.48 | L90: 0.48 | M90: 0.48 | N90: 0.48 | O90: 0.48
B91: PE y = | C91: tCO2/año | K91: =K88*K90*(K89+1) -> 10059.89269 | L91: =L88*L90*(L89+1) -> 14135.4732 | M91: =M88*M90*(M89+1) -> 14896.65014 | N91: =N88*N90*(N89+1) -> 15698.81548 | O91: =O88*O90*(O89+1) -> 16544.17638
B92: (*) Asumimos que un 70% de la demanda de energía vendría de la red (SIN)
D95: =+D87 -> 2014 | E95: 2015 | F95: 2016 | G95: 2017 | H95: 2018 | I95: 2019 | J95: 2020 | K95: 2021 | L95: 2022 | M95: 2023 | N95: 2024 | O95: 2025
B96: Sin Proyecto
B97: Emisiones Planta Sistema Aislado | C97: tCO2/año | D97: =+D48 -> 15844.12948 | E97: 17331.30579 | F97: 17930.90403 | G97: 18108.25995 | H97: 18160.57426 | I97: 19138.49769 | J97: 20169.08103 | K97: 21255.15995 | L97: 22399.72281 | M97: 23605.91891 | N97: 24877.0671 | O97: 26216.66498
B98: Con Proyecto
B99: Generación Combustible Fosil | C99: MWh | D99: =+D25-D88 -> 26931.019 | E99: =+E25-E88 -> 29769.716 | F99: 31023.122 | G99: 32518.519 | H99: 33217.41659 | I99: 35006.1315 | J99: 36891.1664 | K99: 18466.91129 | L99: 12291.36668 | M99: 12953.24087 | N99: 13650.75614 | O99: 14385.83169
B100: Combustible Fósil | C100: MPC | D100: =+D26 -> 294214.1403 | E100: =+E26 -> 320543.5509 | F100: 324808.4193 | G100: 317579.2717 | H100: 339259.1858 | I100: 349783.9228 | J100: 368619.3345 | K100: =+K99*$C$12 -> 184522.7792 | L100: =+L99*$C$12 -> 122816.2687 | M100: 129429.7659 | N100: 136399.3913 | O100: 143744.3221
B101: Emisiones Planta Interconectada | C101: tCO2/año | D101: =+(D25-D88)*D47 -> 15844.12948 | E101: 17331.30579 | F101: 17930.90403 | G101: 18108.25995 | H101: 18160.57426 | I101: 19138.49769 | J101: 20169.08103 | K101: 10096.20098 | L101: 6719.916844 | M101: 7081.775672 | N101: 7463.120131 | O101: 7864.999495
B102: Emisiones del Proyecto | C102: tCO2/año | D102: =D91 -> 0 | E102: 0 | F102: 0 | G102: 0 | H102: 0 | I102: 0 | J102: 0 | K102: 10059.89269 | L102: 14135.4732 | M102: 14896.65014 | N102: 15698.81548 | O102: 16544.17638
B103: Total Emisiones con Proyecto | C103: tCO2/año | D103: =+D102+D101 -> 15844.12948 | E103: 17331.30579 | F103: 17930.90403 | G103: 18108.25995 | H103: 18160.57426 | I103: 19138.49769 | J103: 20169.08103 | K103: 20156.09367 | L103: 20855.39004 | M103: 21978.42581 | N103: 23161.93561 | O103: 24409.17588
B104: Factor Emisiones con Proyecto | C104: tCO2/MWh | D104: =D103/D23 -> 0.5883226878 | E104: =E103/E23 -> 0.5821790772 | F104: 0.5779851565 | G104: 0.556859922 | H104: 0.5467184423 | I104: 0.5467184423 | J104: 0.5467184423 | K104: 0.5184486101 | L104: 0.5090253327 | M104: 0.5090253327 | N104: 0.5090253327 | O104: 0.5090253327
B106: Emisiones Reducidas | C106: tCO2/año | D106: =+D97-D103 -> 0 | E106: 0 | F106: 0 | G106: 0 | H106: 0 | I106: 0 | J106: 0 | K106: 1099.066281 | L106: 1544.332771 | M106: 1627.493093 | N106: 1715.131491 | O106: 1807.489103

Sheet German Busch
B2: FICHA TECNICA DEL SISTEMA AISLADO | F2: PROYECTOS PREVISTOS
C3: 22
A4: 2 | B4: Departamento | C4: =VLOOKUP($C$3,'[11]Potencia Inst y Efect'!$A$9:$W$40,A4,0) -> Santa Cruz | F4: NO TIENE PROYECTOS PREVISTOS, SOLO EXPANSION COMB. FOSIL | K4: X
A5: 3 | B5: Provincia | C5: =VLOOKUP($C$3,'[11]Potencia Inst y Efect'!$A$9:$W$40,A5,0) -> German Bush
A6: 4 | B6: Sistema Eléctrico | C6: =VLOOKUP($C$3,'[11]Potencia Inst y Efect'!$A$9:$W$40,A6,0) -> German Busch
A7: 5 | B7: Empresa | C7: =VLOOKUP($C$3,'[11]Potencia Inst y Efect'!$A$9:$W$40,A7,0) -> CRE Ltda.
A8: 6 | B8: Combustible | C8: =VLOOKUP($C$3,'[11]Potencia Inst y Efect'!$A$9:$W$40,A8,0) -> Gas
A9: 10 | B9: Potencia Instalada MVA | C9: =VLOOKUP($C$3,'[11]Potencia Inst y Efect'!$A$9:$W$40,A9,0) -> 28.985
A10: 15 | B10: Potencia Instalada MW | C10: =VLOOKUP($C$3,'[11]Potencia Inst y Efect'!$A$9:$W$40,A10,0) -> 23.2
A11: 21 | B11: Potencia a Temp. Media | C11: =VLOOKUP($C$3,'[11]Potencia Inst y Efect'!$A$9:$W$40,A11,0) -> 19.1
B12: Consumo especifico (pc/kWh) | C12: =SUM(F26:H26)/SUM(F25:H25) -> 13.47506885
A13: 8 | B13: Energía Alternativa
A14: 11 | B14: Potencia Instalada MVA
A15: 16 | B15: Potencia Instalada MW
A16: 22 | B16: Potencia a Temp. Media
B17: Categoría | C17: Gran Escala
B18: Metodología Aplicable Línea de Base | C18: AM00045 (Ver pagina 11 de la metodología) | F18: Factores de Emisiones
B19: % Crecimiento Acumulativo Anual (*) | C19: 0.055 | F19: Gas Natural | G19: =54300*0.00000105506 -> 0.057289758 | H19: gCO2/BTU
B20: Factor Energía Vendida/Generación Bruta | C20: =SUM(F27:H27)/SUM(F25:H25) -> 0.918382438 | F20: Diesel | G20: =72600*0.00000105506 -> 0.076597356 | H20: gCO2/BTU
B21: (*) Asumimos crecimiento de ventas en sistemas aislados del año 2018
C22: Unidades | D22: 2014 | E22: =+D22+1 -> 2015 | F22: =+E22+1 -> 2016 | G22: 2017 | H22: 2018 | I22: 2019 | J22: 2020 | K22: 2021 | L22: 2022 | M22: 2023 | N22: 2024 | O22: 2025
B23: Generación Total | C23: MWh | D23: =+D24+D25 -> 57328.465 | E23: =+E24+E25 -> 60886.548 | F23: 60284.14 | G23: 55369.353 | H23: 57411.821 | I23: =H23*(1+$C$19) -> 60569.47115 | J23: =I23*(1+$C$19) -> 63900.79207 | K23: 67415.33563 | L23: 71123.17909 | M23: 75034.95394 | N23: 79161.87641 | O23: 83515.77961
B24: Generación Energía Renovable | C24: MWh
B25: Generación | C25: MWh | D25: 57328.465 | E25: 60886.548 | F25: 60284.14 | G25: 55369.353 | H25: 57411.821 | I25: =+I23-I24 -> 60569.47115 | J25: =+J23-J24 -> 63900.79207 | K25: 67415.33563 | L25: 71123.17909 | M25: 75034.95394 | N25: 79161.87641 | O25: 83515.77961
B26: Combustible Fósil gas natural | C26: MPC | D26: 744218.667 | E26: 784928.69 | F26: 795439.492 | G26: 748755.086 | H26: 787872.444 | I26: =+I25*$C$12 -> 816177.7941 | J26: =+J25*$C$12 -> 861067.5728 | K26: 908426.2893 | L26: 958389.7352 | M26: 1011101.171 | N26: 1066711.735 | O26: 1125380.88
B27: Energía Vendida | C27: MWh | D27: 49864.025 | E27: 55849.83 | F27: 55786.36 | G27: 50334.797 | H27: 52818.988 | I27: =I25*$C$20 -> 55625.93859 | J27: 58685.36521 | K27: 61913.06029 | L27: 65318.27861 | M27: 68910.78393 | N27: 72700.87705 | O27: 76699.42529
B28: Cantidad de Usuarios | D28: 8646 | E28: 9004 | F28: 9991 | G28: 10406 | H28: 10771
B29: Consumo por usuario | C29: kWh/usuario-mes | D29: =(D27*1000/D28)/12 -> 480.6078437 | E29: =(E27*1000/E28)/12 -> 516.898323 | F29: =(F27*1000/F28)/12 -> 465.3051079 | G29: =(G27*1000/G28)/12 -> 403.0911413 | H29: =(H27*1000/H28)/12 -> 408.651224
B30: Demanda Máxima | C30: MW | F30: 10.94204 | G30: 9.697378 | H30: 10.25271
B31: Potencia Instalada | C31: MW | D31: 21 | E31: 21 | F31: 21 | G31: 21 | H31: =+C10 -> 23.2
B32: Pot. Efectiva a Temp. Media | C32: MW | D32: 17.4 | E32: 17.4 | F32: 17.4 | G32: 17.4 | H32: =+C11 -> 19.1
B33: Factor de Planta | D33: =D25/(D32*8760) -> 0.3761118 | E33: =E25/(E32*8760) -> 0.3994551252 | F33: =F25/(F32*8760) -> 0.3955029392 | G33: =G25/(G32*8760) -> 0.3632587585 | H33: =H25/(H32*8760) -> 0.3431340756
B39: Calculo del Factor de Emisión
B40: EF CO2,j = COEF i,j = | C40: =+G19 -> 0.057289758 | D40: =+H19 -> gCO2/BTU | E40: Gas natural
D42: =+D22 -> 2014 | E42: =+E22 -> 2015 | F42: =+F22 -> 2016 | G42: =+G22 -> 2017 | H42: =+H22 -> 2018 | I42: =+H42+1 -> 2019 | J42: 2020 | K42: 2021 | L42: 2022 | M42: 2023 | N42: 2024 | O42: 2025
B43: GEN j,bl = | C43: MWh | D43: =+D25 -> 57328.465 | E43: 60886.548 | F43: 60284.14 | G43: 55369.353 | H43: 57411.821 | I43: 60569.47115 | J43: 63900.79207 | K43: 67415.33563 | L43: 71123.17909 | M43: 75034.95394 | N43: 79161.87641 | O43: 83515.77961
B44: F i,j,bl = | C44: MMBTU (gas) | D44: =D26*1000*940/1000000 -> 699565.547 | E44: 737832.9686 | F44: 747713.1225 | G44: 703829.7808 | H44: 740600.0974 | I44: 767207.1265 | J44: 809403.5184 | K44: 853920.712 | L44: 900886.3511 | M44: 950435.1004 | N44: 1002709.031 | O44: 1057858.028
B45: EF bl,ini = | C45: tCO2/MWh | D45: =(D44*$C$40)/D43 -> 0.6990932147 | E45: =(E44*$C$40)/E43 -> 0.6942464896 | F45: =(SUM(D44:F44)*$C$40)/SUM(D43:F43) -> 0.7013171483 | G45: =(SUM(E44:G44)*$C$40)/SUM(E43:G43) -> 0.7104836566 | H45: =(SUM(F44:H44)*$C$40)/SUM(F43:H43) -> 0.7256644275 | I45: =+H45 -> 0.7256644275 | J45: =+I45 -> 0.7256644275 | K45: 0.7256644275 | L45: 0.7256644275 | M45: 0.7256644275 | N45: 0.7256644275 | O45: 0.7256644275
B46: BE y = | C46: tCO2/año | D46: =+D43*D45 -> 40077.94089 | E46: 42270.27222 | F46: 42278.30115 | G46: 39339.02039 | H46: 41661.71622 | I46: 43953.11061 | J46: 46370.5317 | K46: 48920.91094 | L46: 51611.56104 | M46: 54450.1969 | N46: 57444.95773 | O46: 60604.4304
B48: Evolución Necesidad de Potencia
B49: Potencia Instalada | C49: MW | D49: =+D31 -> 21 | E49: 21 | F49: 21 | G49: 21 | H49: 23.2 | I49: =+H49 -> 23.2 | J49: =+I49+4.2 -> 27.4 | K49: 27.4 | L49: 27.4 | M49: =+L49+1.5 -> 28.9 | N49: 28.9 | O49: 28.9
B50: Pot. Efectiva a Temp. Media | C50: MW | D50: 17.4 | E50: 17.4 | F50: 17.4 | G50: 17.4 | H50: 19.1 | I50: =+H50 -> 19.1 | J50: =($H$50/$H$49)*J49 -> 22.55775862 | K50: =($H$50/$H$49)*K49 -> 22.55775862 | L50: 22.55775862 | M50: 23.79267241 | N50: 23.79267241 | O50: 23.79267241
B51: Factor de Planta | D51: 0.3761118 | E51: 0.3994551252 | F51: 0.3955029392 | G51: 0.3632587585 | H51: 0.3431340756 | I51: =I25/(I50*8760) -> 0.3620064498 | J51: 0.3233748126 | K51: 0.3411604273 | L51: 0.3599242508 | M51: 0.3600114297 | N51: 0.3798120583 | O51: 0.4007017215
B52: Adiciones de capacidad | C52: MW | I52: =+I49-H49 -> 0 | J52: 4.2 | K52: 0 | L52: =+L49-K49 -> 0 | M52: =+M49-L49 -> 1.5 | N52: =+N49-M49 -> 0 | O52: =+O49-N49 -> 0
B55: Donde
B56: GEN j,bl = | C56: MWh | D56: Electricidad (MWh) generada por el sistema aislado de la fuente "j"
B57: F i,j,bl = | C57: MMBTU | D57: Cantidad de Combustible i (masa o volumen) consumido por la fuente "j"
B58: EF bl,ini = | C58: tCO2/MWh | D58: Línea de Base del Factor de Emisiones del sistema aislado
B59: COEF i,j = | C59: gCO2/BTU | D59: Coeficiente de emisiones de CO2 del combustible
B60: BE y = | C60: tCO2/año | D60: Línea de Base de emisiones

Sheet Bermejo
B2: FICHA TECNICA DEL SISTEMA AISLADO | F2: PROYECTOS PREVISTOS
C3: 24
A4: 2 | B4: Departamento | C4: =VLOOKUP($C$3,'[11]Potencia Inst y Efect'!$A$9:$W$40,A4,0) -> Tarija | F4: Electrificación mediante la extensión de una red (nacional, regional o mini-red) | K4: X
A5: 3 | B5: Provincia | C5: =VLOOKUP($C$3,'[11]Potencia Inst y Efect'!$A$9:$W$40,A5,0) -> Aniceto Arce
A6: 4 | B6: Sistema Eléctrico | C6: =VLOOKUP($C$3,'[11]Potencia Inst y Efect'!$A$9:$W$40,A6,0) -> Bermejo
A7: 5 | B7: Empresa | C7: =VLOOKUP($C$3,'[11]Potencia Inst y Efect'!$A$9:$W$40,A7,0) -> SETAR | F7: Proyecto: | G7: Conexión al SIN Bermejo
A8: 6 | B8: Combustible | C8: =VLOOKUP($C$3,'[11]Potencia Inst y Efect'!$A$9:$W$40,A8,0) -> Gas | F8: Línea: | G8: 115 kV (Tarija - Bermejo)
A9: 10 | B9: Potencia Instalada MVA | C9: =VLOOKUP($C$3,'[11]Potencia Inst y Efect'!$A$9:$W$40,A9,0) -> 18.056 | G9: Mes/Año de puesta en operación | H9: 2021-10-01
A10: 15 | B10: Potencia Instalada MW | C10: =VLOOKUP($C$3,'[11]Potencia Inst y Efect'!$A$9:$W$40,A10,0) -> 14.444 | G10: Categoría | H10: Gran Escala
A11: 21 | B11: Potencia a Temp. Media | C11: =VLOOKUP($C$3,'[11]Potencia Inst y Efect'!$A$9:$W$40,A11,0) -> 11.55 | G11: Metodología Aplicable | H11: AM00045
B12: Consumo especifico (pc/kWh) | C12: =SUM(F26:H26)/SUM(F25:H25) -> 13.25015283
A13: 8 | B13: Energía Alternativa
A14: 11 | B14: Potencia Instalada MVA
A15: 16 | B15: Potencia Instalada MW
A16: 22 | B16: Potencia a Temp. Media
B17: Categoría | C17: Gran Escala
B18: Metodología Aplicable Línea de Base | C18: AM00045 (Ver pagina 11 de la metodología) | F18: Factores de Emisiones
B19: % Crecimiento Acumulativo Anual (*) | C19: 0.055 | F19: Gas Natural | G19: =54300*0.00000105506 -> 0.057289758 | H19: gCO2/BTU
B20: Factor Energía Vendida/Generación Bruta | C20: =SUM(F27:H27)/SUM(F25:H25) -> 0.8057744076 | F20: Diesel | G20: =72600*0.00000105506 -> 0.076597356 | H20: gCO2/BTU
B21: (*) Asumimos crecimiento de ventas en sistemas aislados del año 2018
C22: Unidades | D22: 2014 | E22: =+D22+1 -> 2015 | F22: =+E22+1 -> 2016 | G22: 2017 | H22: 2018 | I22: 2019 | J22: 2020 | K22: 2021 | L22: 2022 | M22: 2023 | N22: 2024 | O22: 2025
B23: Generación Total | C23: MWh | D23: =+D24+D25 -> 17625.435 | E23: =+E24+E25 -> 24367.994 | F23: 25069.998 | G23: 27032.792 | H23: 28138.757 | I23: =H23*(1+$C$19) -> 29686.38863 | J23: =I23*(1+$C$19) -> 31319.14001 | K23: 33041.69271 | L23: 34858.98581 | M23: 36776.23003 | N23: 38798.92268 | O23: 40932.86343
B24: Generación Energía Renovable | C24: MWh
B25: Generación | C25: MWh | D25: 17625.435 | E25: 24367.994 | F25: 25069.998 | G25: 27032.792 | H25: 28138.757 | I25: =+I23-I24 -> 29686.38863 | J25: =+J23-J24 -> 31319.14001 | K25: 33041.69271 | L25: 34858.98581 | M25: 36776.23003 | N25: 38798.92268 | O25: 40932.86343
B26: Combustible Fósil | C26: MPC | E26: 282967.2 | F26: 292904.17 | G26: 368663.229 | H26: 401645.362 | I26: =+I25*$C$12 -> 393349.1864 | J26: =+J25*$C$12 -> 414983.3916 | K26: 437807.4781 | L26: 461886.8894 | M26: 487290.6684 | N26: 514091.6551 | O26: 542366.6962
B27: Energía Vendida | C27: MWh | D27: 19097.197 | E27: 19975.205 | F27: 20153.143 | G27: 21583.881 | H27: 22919.561 | I27: =I25*$C$20 -> 23920.53222 | J27: =J25*$C$20 -> 25236.16149 | K27: 26624.15037 | L27: 28088.47864 | M27: 29633.34497 | N27: 31263.17894 | O27: 32982.65378
B28: Cantidad de Usuarios | D28: 10731 | E28: 11261 | F28: 11717 | G28: 12254 | H28: 12941
B29: Consumo por usuario | C29: kWh/usuario-mes | D29: =(D27*1000/D28)/12 -> 148.3024027 | E29: =(E27*1000/E28)/12 -> 147.8199464 | F29: =(F27*1000/F28)/12 -> 143.3326435 | G29: =(G27*1000/G28)/12 -> 146.7811939 | H29: =(H27*1000/H28)/12 -> 147.5900948
B30: Demanda Máxima | C30: MW | F30: 5.91 | G30: 5.96 | H30: 6.1
B31: Potencia Instalada | C31: MW | D31: 10.199 | E31: 9.23 | F31: 12.22 | G31: 15.419 | H31: =+C10 -> 14.444
B32: Pot. Efectiva a Temp. Media | C32: MW | D32: 8.15 | E32: 7.35 | F32: 9.6 | G32: 12.4 | H32: =+C11 -> 11.55
B33: Factor de Planta | D33: =D25/(D32*8760) -> 0.2468755778 | E33: =E25/(E32*8760) -> 0.3784672755 | F33: =F25/(F32*8760) -> 0.2981116581 | G33: =G25/(G32*8760) -> 0.2488657387 | H33: =H25/(H32*8760) -> 0.2781114175
B39: Calculo del Factor de Emisión
B40: EF CO2,j = COEF i,j = | C40: =+G19 -> 0.057289758 | D40: =+#REF! ->  | E40: Gas Natural
D42: =+D22 -> 2014 | E42: =+E22 -> 2015 | F42: =+F22 -> 2016 | G42: =+G22 -> 2017 | H42: =+H22 -> 2018 | I42: =+H42+1 -> 2019 | J42: 2020 | K42: 2021 | L42: 2022 | M42: 2023 | N42: 2024 | O42: 2025
B43: GEN j,bl = | C43: MWh | D43: =+D25 -> 17625.435 | E43: =+E25 -> 24367.994 | F43: 25069.998 | G43: 27032.792 | H43: 28138.757 | I43: 29686.38863 | J43: 31319.14001 | K43: 33041.69271 | L43: 34858.98581 | M43: 36776.23003 | N43: 38798.92268 | O43: 40932.86343
B44: F i,j,bl = | C44: MMBTU | E44: =E26*1000*940/1000000 -> 265989.168 | F44: =F26*1000*940/1000000 -> 275329.9198 | G44: 346543.4353 | H44: 377546.6403 | I44: 369748.2352 | J44: 390084.3881 | K44: 411539.0295 | L44: 434173.6761 | M44: 458053.2283 | N44: 483246.1558 | O44: 509824.6944
B45: EF bl,ini = | C45: tCO2/MWh | D45: =D44*$C$40/D43 -> 0 | E45: =SUM(E44)*$C$40/SUM(E43) -> 0.6253471281 | F45: =SUM(E44:F44)*$C$40/SUM(E43:F43) -> 0.6272916493 | G45: =SUM(E44:G44)*$C$40/SUM(E43:G43) -> 0.6651616006 | H45: =SUM(F44:H44)*$C$40/SUM(F43:H43) -> 0.7135521661 | I45: =+H45 -> 0.7135521661 | J45: 0.7135521661 | K45: 0.7135521661 | L45: 0.7135521661 | M45: 0.7135521661 | N45: 0.7135521661 | O45: 0.7135521661
B46: BE y = | C46: tCO2/año | E46: =+E43*E45 -> 15238.45507 | F46: =+F43*F45 -> 15726.20039 | G46: 17981.17519 | H46: 20078.47101 | I46: 21182.78691 | J46: 22347.84019 | K46: 23576.97141 | L46: 24873.70483 | M46: 26241.7586 | N46: 27685.05532 | O46: 29207.73336
B48: Evolución Necesidad de Potencia
B49: Potencia Instalada | C49: MW | D49: =+D31 -> 10.199 | E49: 9.23 | F49: 12.22 | G49: 15.419 | H49: 14.444 | I49: =+H49 -> 14.444 | J49: =+I49 -> 14.444 | K49: 14.444 | L49: 14.444 | M49: 14.444 | N49: 14.444 | O49: 14.444
B50: Pot. Efectiva a Temp. Media | C50: MW | D50: 8.15 | E50: 7.35 | F50: 9.6 | G50: 12.4 | H50: 11.55 | I50: =+H50 -> 11.55 | J50: 11.55 | K50: 11.55 | L50: 11.55 | M50: 11.55 | N50: 11.55 | O50: 11.55
B51: Factor de Planta | D51: 0.2468755778 | E51: 0.3784672755 | F51: 0.2981116581 | G51: 0.2488657387 | H51: 0.2781114175 | I51: =I25/(I50*8760) -> 0.2934075455 | J51: =J25/(J50*8760) -> 0.3095449605 | K51: 0.3265699333 | L51: 0.3445312796 | M51: 0.3634805 | N51: 0.3834719275 | O51: 0.4045628835
B52: Adiciones de capacidad | C52: MW | L52: =+L49-K49 -> 0 | M52: =+M49-L49 -> 0 | N52: =+N49-M49 -> 0 | O52: =+O49-N49 -> 0
B55: Donde
B56: GEN j,bl = | C56: MWh | D56: Electricidad (MWh) generada por el sistema aislado de la fuente "j"
B57: F i,j,bl = | C57: MMBTU | D57: Cantidad de Combustible i (masa o volumen) consumido por la fuente j (planta)
B58: EF bl,ini = | C58: tCO2/MWh | D58: Línea de Base del Factor de Emisiones del sistema aislado, al momento de la interconexión a la red
B59: COEF i,j = | C59: gCO2/BTU | D59: Coeficiente de emisiones de CO2 del combustible "i"
B60: BE y = | C60: tCO2/año | D60: Línea de Base de emisiones
B69: ACTIVIDADES DEL PROYECTO
B70: Las emisiones de referencia se calculan considerando el consumo de combustible que se hubiera utilizado para generar la cantidad equivalente de energía en ausencia de la actividad del proyecto.
B75: Emisiones del Proyecto
B76: Utilizamos el factor de emisiones del Sistema Interconectado Nacional (SIN) | C76: 0.48
B79: Donde:
B80: EG y = | C80: Electricidad abastecida al sistema Aislado por la red (SIN) en el año y (MWh)
B81: EF p = | C81: Factor de Emisión de Red (SIN) método simple promedio
B82: TL = | C82: 0.02681488095 | D82: Perdidas de energía en la red de transmisión del SIN
B83: PE sf6,y = | C83: 0 | D83: La red de transmisión nueva no tiene SF6
D85: =+D42 -> 2014 | E85: =+E42 -> 2015 | F85: 2016 | G85: 2017 | H85: 2018 | I85: 2019 | J85: 2020 | K85: 2021 | L85: 2022 | M85: 2023 | N85: 2024 | O85: 2025
B86: EG y(*) = | C86: MWh | K86: =+K25*0.7/12*3 -> 5782.296224 | L86: =+L25*0.7 -> 24401.29007 | M86: =+M25*0.7 -> 25743.36102 | N86: =+N25*0.7 -> 27159.24588 | O86: =+O25*0.7 -> 28653.0044
B87: =+B82 -> TL = | C87: % | K87: =+C82 -> 0.02681488095 | L87: =+K87 -> 0.02681488095 | M87: 0.02681488095 | N87: 0.02681488095 | O87: 0.02681488095
B88: EF CO2,y = | C88: tCO2/MWh | K88: =+C76 -> 0.48 | L88: 0.48 | M88: 0.48 | N88: 0.48 | O88: 0.48
B89: PE y = | C89: tCO2/año | K89: =K86*K88*(K87+1) -> 2849.926948 | L89: =L86*L88*(L87+1) -> 12026.69172 | M89: =M86*M88*(M87+1) -> 12688.15977 | N89: =N86*N88*(N87+1) -> 13386.00855 | O89: =O86*O88*(O87+1) -> 14122.23902
B90: (*) Asumimos que un 70% de la energía vendría de la red (SIN)
D93: =+D85 -> 2014 | E93: 2015 | F93: 2016 | G93: 2017 | H93: 2018 | I93: 2019 | J93: 2020 | K93: 2021 | L93: 2022 | M93: 2023 | N93: 2024 | O93: 2025
B94: Sin Proyecto
B95: Emisiones Planta Sistema Aislado | C95: tCO2/año | D95: =+D46 -> 0 | E95: 15238.45507 | F95: 15726.20039 | G95: 17981.17519 | H95: 20078.47101 | I95: 21182.78691 | J95: 22347.84019 | K95: 23576.97141 | L95: 24873.70483 | M95: 26241.7586 | N95: 27685.05532 | O95: 29207.73336
B97: Con Proyecto
B98: Generación Combustible Fosil | C98: MWh | D98: =+D25-D86 -> 17625.435 | E98: =+E25-E86 -> 24367.994 | F98: 25069.998 | G98: 27032.792 | H98: 28138.757 | I98: 29686.38863 | J98: 31319.14001 | K98: 27259.39649 | L98: 10457.69574 | M98: 11032.86901 | N98: 11639.6768 | O98: 12279.85903
B99: Combustible Fósil | C99: MPC | D99: =+D26 -> 0 | E99: =+E26 -> 282967.2 | F99: 292904.17 | G99: 368663.229 | H99: 401645.362 | I99: 393349.1864 | J99: 414983.3916 | K99: =+K98*$C$12 -> 361191.1695 | L99: =+L98*$C$12 -> 138566.0668 | M99: 146187.2005 | N99: 154227.4965 | O99: 162710.0088
B100: Emisiones Planta Interconectada | C100: tCO2/año | D100: =+(D25-D86)*D45 -> 0 | E100: =+(E25-E86)*E45 -> 15238.45507 | F100: 15726.20039 | G100: 17981.17519 | H100: 20078.47101 | I100: 21182.78691 | J100: 22347.84019 | K100: =+(K25-K86)*K45 -> 19451.00141 | L100: 7462.11145 | M100: 7872.52758 | N100: 8305.516596 | O100: 8762.320009
B101: Emisiones del Proyecto | C101: tCO2/año | D101: =D89 -> 0 | E101: =E89 -> 0 | F101: 0 | G101: 0 | H101: 0 | I101: 0 | J101: 0 | K101: 2849.926948 | L101: 12026.69172 | M101: 12688.15977 | N101: 13386.00855 | O101: 14122.23902
B102: Total Emisiones con Proyecto | C102: tCO2/año | D102: =+D101+D100 -> 0 | E102: 15238.45507 | F102: 15726.20039 | G102: 17981.17519 | H102: 20078.47101 | I102: 21182.78691 | J102: 22347.84019 | K102: 22300.92836 | L102: 19488.80317 | M102: 20560.68735 | N102: 21691.52515 | O102: 22884.55903
B103: Factor Emisiones con Proyecto | C103: tCO2/MWh | D103: =+D102/D23 -> 0 | E103: =+E102/E23 -> 0.6253471281 | F103: 0.6272916493 | G103: 0.6651616006 | H103: 0.7135521661 | I103: 0.7135521661 | J103: 0.7135521661 | K103: 0.674932987 | L103: 0.5590754498 | M103: 0.5590754498 | N103: 0.5590754498 | O103: 0.5590754498
B105: Emisiones Reducidas | C105: tCO2/año | D105: =+D95-D102 -> 0 | E105: =+E95-E102 -> 0 | F105: 0 | G105: 0 | H105: 0 | I105: 0 | J105: 0 | K105: 1276.043048 | L105: 5384.90166 | M105: 5681.071252 | N105: 5993.530171 | O105: 6323.17433

Sheet Chiquitos
B2: FICHA TECNICA DEL SISTEMA AISLADO | F2: PROYECTOS PREVISTOS
C3: 18
A4: 2 | B4: Departamento | C4: =VLOOKUP($C$3,'[11]Potencia Inst y Efect'!$A$9:$W$40,A4,0) -> Santa Cruz | F4: NO TIENE PROYECTOS PREVISTOS, SOLO EXPANSION COMB. FOSIL | K4: X
A5: 3 | B5: Provincia | C5: =VLOOKUP($C$3,'[11]Potencia Inst y Efect'!$A$9:$W$40,A5,0) -> Chiquitos
A6: 4 | B6: Sistema Eléctrico | C6: =VLOOKUP($C$3,'[11]Potencia Inst y Efect'!$A$9:$W$40,A6,0) -> Roboré y Santiago de Chiquitos
A7: 5 | B7: Empresa | C7: =VLOOKUP($C$3,'[11]Potencia Inst y Efect'!$A$9:$W$40,A7,0) -> CRE Ltda.
A8: 6 | B8: Combustible | C8: =VLOOKUP($C$3,'[11]Potencia Inst y Efect'!$A$9:$W$40,A8,0) -> Gas
A9: 10 | B9: Potencia Instalada MVA | C9: =VLOOKUP($C$3,'[11]Potencia Inst y Efect'!$A$9:$W$40,A9,0) -> 9.88
A10: 15 | B10: Potencia Instalada MW | C10: =VLOOKUP($C$3,'[11]Potencia Inst y Efect'!$A$9:$W$40,A10,0) -> 7.54
A11: 21 | B11: Potencia a Temp. Media | C11: =VLOOKUP($C$3,'[11]Potencia Inst y Efect'!$A$9:$W$40,A11,0) -> 7.2
B12: Consumo especifico (pc/kWh) | C12: =SUM(F26:H26)/SUM(F25:H25) -> 10.9195933
A13: 8 | B13: Energía Alternativa
A14: 11 | B14: Potencia Instalada MVA
A15: 16 | B15: Potencia Instalada MW
A16: 22 | B16: Potencia a Temp. Media
B17: Categoría | C17: Pequeña Escala | F17: Factores de Emisiones
B18: Metodología Aplicable Línea de Base | C18: AMS I.A | F18: Gas Natural | G18: =54300*0.00000105506 -> 0.057289758 | H18: gCO2/BTU
B19: % Crecimiento Acumulativo Anual | C19: =(H25/E25)^(1/3)-1 -> 0.06101097975 | F19: Diesel | G19: =72600*0.00000105506 -> 0.076597356 | H19: gCO2/BTU
B20: Factor Energía Vendida/Generación Bruta | C20: =SUM(F27:H27)/SUM(F25:H25) -> 0.8361868426
C22: Unidades | D22: 2014 | E22: =+D22+1 -> 2015 | F22: =+E22+1 -> 2016 | G22: 2017 | H22: 2018 | I22: 2019 | J22: 2020 | K22: 2021 | L22: 2022 | M22: 2023 | N22: 2024 | O22: 2025
B23: Generación Total | C23: MWh | D23: =+D24+D25 -> 16495.10006 | E23: =+E24+E25 -> 18492.52734 | F23: 19606.297 | G23: 21045.85406 | H23: 22087.9751 | I23: =H23*(1+$C$19) -> 23435.5841 | J23: =I23*(1+$C$19) -> 24865.41205 | K23: 26382.4752 | L23: 27992.09586 | M23: 29699.92105 | N23: 31511.94234 | O23: 33434.51681
B24: Generación Energía Renovable | C24: MWh
B25: Generación | C25: MWh | D25: 16495.10006 | E25: 18492.52734 | F25: 19606.297 | G25: 21045.85406 | H25: 22087.9751 | I25: =+I23-I24 -> 23435.5841 | J25: =+J23-J24 -> 24865.41205 | K25: 26382.4752 | L25: 27992.09586 | M25: 29699.92105 | N25: 31511.94234 | O25: 33434.51681
B26: Combustible Fósil | C26: MPC | D26: 178080.859 | E26: 202608.063 | F26: 217565.0922 | G26: 229197.2326 | H26: 238334.3366 | I26: =+I25*$C$12 -> 255907.0472 | J26: =+J25*$C$12 -> 271520.1869 | K26: 288085.8995 | L26: 305662.3025 | M26: 324311.059 | N26: 344097.5945 | O26: 365091.3258
B27: Energía Vendida | C27: MWh | D27: 13815.353 | E27: 15455.154 | F27: 16493.128 | G27: 17568.087 | H27: 18401.253 | I27: =I25*$C$20 -> 19596.52708 | J27: =J25*$C$20 -> 20792.13039 | K27: 22060.67864 | L27: 23406.62226 | M27: 24834.68321 | N27: 26349.87157 | O27: 27957.50305
B28: Cantidad de Usuarios | D28: 6760 | E28: 7040 | F28: 7747 | G28: 8138 | H28: 8470
B29: Consumo por usuario | C29: kWh/usuario-mes | D29: =(D27*1000/D28)/12 -> 170.307606 | E29: =(E27*1000/E28)/12 -> 182.9445313 | F29: =(F27*1000/F28)/12 -> 177.4141388 | G29: =(G27*1000/G28)/12 -> 179.8976714 | H29: =(H27*1000/H28)/12 -> 181.0434179
B30: Demanda Máxima | C30: MW | F30: 4.09624 | G30: 4.523989 | H30: 4.380218
B31: Potencia Instalada | C31: MW | D31: 5.84 | E31: 5.84 | F31: 5.84 | G31: 5.84 | H31: =+C10 -> 7.54
B32: Pot. Efectiva a Temp. Media | C32: MW | D32: 4.84 | E32: 4.84 | F32: 4.84 | G32: 4.84 | H32: =+C11 -> 7.2
B33: Factor de Planta | D33: =D25/(D32*8760) -> 0.3890500599 | E33: =E25/(E32*8760) -> 0.4361609717 | F33: =F25/(F32*8760) -> 0.4624301153 | G33: =G25/(G32*8760) -> 0.496383214 | H33: =H25/(H32*8760) -> 0.3502025479
B39: Calculo del Factor de Emisión
B40: EF CO2,j = COEF i,j = | C40: =+G18 -> 0.057289758 | D40: =+H18 -> gCO2/BTU | E40: Gas Natural
D42: =+D22 -> 2014 | E42: =+E22 -> 2015 | F42: =+F22 -> 2016 | G42: =+G22 -> 2017 | H42: =+H22 -> 2018 | I42: =+H42+1 -> 2019 | J42: 2020 | K42: 2021 | L42: 2022 | M42: 2023 | N42: 2024 | O42: 2025
B43: GEN j,bl = | C43: MWh | D43: =+D23 -> 16495.10006 | E43: =+E23 -> 18492.52734 | F43: 19606.297 | G43: 21045.85406 | H43: 22087.9751 | I43: 23435.5841 | J43: 24865.41205 | K43: 26382.4752 | L43: 27992.09586 | M43: 29699.92105 | N43: 31511.94234 | O43: 33434.51681
B44: FC j,y = | C44: MPC | D44: =+D26 -> 178080.859 | E44: 202608.063 | F44: 217565.0922 | G44: 229197.2326 | H44: 238334.3366 | I44: 255907.0472 | J44: 271520.1869 | K44: 288085.8995 | L44: 305662.3025 | M44: 324311.059 | N44: 344097.5945 | O44: 365091.3258
B45: NCV j = | C45: Btu/pc | D45: 940 | E45: 940 | F45: 940 | G45: 940 | H45: 940 | I45: 940 | J45: 940 | K45: 940 | L45: 940 | M45: 940 | N45: 940 | O45: 940
B46: EF co2,j = | C46: gCO2/BTU | D46: =+C40 -> 0.057289758 | E46: =+D46 -> 0.057289758 | F46: =+E46 -> 0.057289758 | G46: 0.057289758 | H46: 0.057289758 | I46: 0.057289758 | J46: 0.057289758 | K46: 0.057289758 | L46: 0.057289758 | M46: 0.057289758 | N46: 0.057289758 | O46: 0.057289758
B47: BE y = | C47: tCO2/año | D47: =+D46*D45*D44/1000 -> 9590.076758 | E47: =+E46*E45*E44/1000 -> 10910.92488 | F47: =+F46*F45*F44/1000 -> 11716.39639 | G47: =+G46*G45*G44/1000 -> 12342.81475 | H47: =+H46*H45*H44/1000 -> 12834.86948 | I47: 13781.20164 | J47: 14622.00625 | K47: 15514.10918 | L47: 16460.64018 | M47: 17464.91996 | N47: 18530.47184 | O47: 19661.03408
B48: EF bl = | C48: tCO2/MWh | D48: =D47/D43 -> 0.5813894262 | E48: =E47/E43 -> 0.5900180479 | F48: =SUM(D47:F47)/SUM(D43:F43) -> 0.5901279014 | G48: =SUM(E47:G47)/SUM(E43:G43) -> 0.5912642857 | H48: 0.5880460063 | I48: =I47/I43 -> 0.5880460063 | J48: =J47/J43 -> 0.5880460063 | K48: 0.5880460063 | L48: 0.5880460063 | M48: 0.5880460063 | N48: 0.5880460063 | O48: 0.5880460063
B50: Evolución Necesidad de Potencia
B51: Potencia Instalada | C51: MW | D51: =+D31 -> 5.84 | E51: 5.84 | F51: 5.84 | G51: 5.84 | H51: 7.54 | I51: =+H51 -> 7.54 | J51: =+I51 -> 7.54 | K51: 7.54 | L51: =+K51 -> 7.54 | M51: =+L51+1 -> 8.54 | N51: =+M51+1 -> 9.54 | O51: 10.54
B52: Pot. Efectiva a Temp. Media | C52: MW | D52: 4.84 | E52: 4.84 | F52: 4.84 | G52: 4.84 | H52: 7.2 | I52: =+H52 -> 7.2 | J52: 7.2 | K52: 7.2 | L52: =$K$52/$K$51*L51 -> 7.2 | M52: =$K$52/$K$51*M51 -> 8.154907162 | N52: 9.109814324 | O52: 10.06472149
B53: Factor de Planta | D53: 0.3890500599 | E53: 0.4361609717 | F53: 0.4624301153 | G53: 0.496383214 | H53: 0.3502025479 | I53: =I25/(I52*8760) -> 0.3715687484 | J53: =J25/(J52*8760) -> 0.3942385218 | K53: 0.4182914003 | L53: 0.4438117685 | M53: 0.4157499135 | N53: 0.39487673 | O53: 0.3792182098
B54: Adiciones de capacidad | C54: MW | L54: =+L51-K51 -> 0 | M54: =+M51-L51 -> 1 | N54: =+N51-M51 -> 1 | O54: =+O51-N51 -> 1
B56: Donde
B57: GEN j,bl = | C57: MWh | D57: Electricidad (MWh) generada por el sistema aislado de la fuente "j"
B58: FC j,y = | C58: MPC | D58: Cantidad de Combustible i (masa o volumen) consumido por la fuente "j"
B59: NCV j = | C59: Btu/pc | D59: Poder Calorífico Inferior del combustible "j"
B60: EF bl = | C60: tCO2/MWh | D60: Línea de Base del Factor de Emisiones del sistema aislado
B61: EF co2,j = | C61: gCO2/BTU | D61: Coeficiente de emisiones de CO2 del combustible
B62: BE y = | C62: tCO2/año | D62: Línea de Base de emisiones

Sheet Huacaraje
B2: FICHA TECNICA DEL SISTEMA AISLADO | F2: PROYECTOS PREVISTOS
C3: 12
A4: 2 | B4: Departamento | C4: =VLOOKUP($C$3,'[11]Potencia Inst y Efect'!$A$9:$W$40,A4,0) -> Beni | F4: Hibridación/Desplazamiento de energía fósil | K4: X
A5: 3 | B5: Provincia | C5: =VLOOKUP($C$3,'[11]Potencia Inst y Efect'!$A$9:$W$40,A5,0) -> Itenez
A6: 4 | B6: Sistema Eléctrico | C6: =VLOOKUP($C$3,'[11]Potencia Inst y Efect'!$A$9:$W$40,A6,0) -> Huacaraje | F6: Proyecto: | G6: Planta Solar Huacaraje
A7: 5 | B7: Empresa | C7: =VLOOKUP($C$3,'[11]Potencia Inst y Efect'!$A$9:$W$40,A7,0) -> ENDE DELBENI S.A.M. | G7: Potencia Instalada MW | H7: 250 | I7: kWp
A8: 6 | B8: Combustible | C8: =VLOOKUP($C$3,'[11]Potencia Inst y Efect'!$A$9:$W$40,A8,0) -> Diesel | G8: Potencia a Temp. Media | H8: =+H7*0.95 -> 237.5 | I8: kWp
A9: 10 | B9: Potencia Instalada MVA | C9: =VLOOKUP($C$3,'[11]Potencia Inst y Efect'!$A$9:$W$40,A9,0) -> 0.58 | G9: Mes/Año de puesta en operación | H9: 2021-05-01
A10: 15 | B10: Potencia Instalada MW | C10: =VLOOKUP($C$3,'[11]Potencia Inst y Efect'!$A$9:$W$40,A10,0) -> 0.464 | G10: Factor de Planta | H10: 0.1373698059
A11: 21 | B11: Potencia a Temp. Media | C11: =VLOOKUP($C$3,'[11]Potencia Inst y Efect'!$A$9:$W$40,A11,0) -> 0.398 | G11: Categoría | H11: Pequeña Escala
B12: Consumo especifico (lts/kWh) | C12: =SUM(H26)/SUM(H25) -> 0.3125669976 | G12: Metodología Aplicable | H12: AMS I.A
A13: 8 | B13: Energía Alternativa
A14: 11 | B14: Potencia Instalada MVA
A15: 16 | B15: Potencia Instalada MW
A16: 22 | B16: Potencia a Temp. Media
B17: Categoría | C17: Pequeña Escala | F17: Factores de Emisiones
B18: Metodología Aplicable Línea de Base | C18: AMS I.A | F18: Gas Natural | G18: =54300*0.00000105506 -> 0.057289758 | H18: gCO2/BTU
B19: % Crecimiento Acumulativo Anual | C19: =H25/G25-1 -> 0.001514992038 | F19: Diesel | G19: =72600*0.00000105506 -> 0.076597356 | H19: gCO2/BTU
B20: Factor Energía Vendida/Generación Bruta | C20: =SUM(G27:H27)/SUM(G25:H25) -> 0.8618397074
C22: Unidades | D22: 2014 | E22: =+D22+1 -> 2015 | F22: =+E22+1 -> 2016 | G22: 2017 | H22: 2018 | I22: 2019 | J22: 2020 | K22: 2021 | L22: 2022 | M22: 2023 | N22: 2024 | O22: 2025
B23: Generación Total | C23: MWh | D23: =+D24+D25 -> 0 | E23: =+E24+E25 -> 0 | F23: 190 | G23: 679.305 | H23: 680.3341417 | I23: =+H23*(1+$C$19) -> 681.3648425 | J23: =+I23*(1+$C$19) -> 682.3971048 | K23: 683.430931 | L23: 684.4663234 | M23: 685.5032844 | N23: 686.5418164 | O23: 687.5819218
B24: Generación Energía Renovable | C24: MWh
B25: Generación | C25: MWh | F25: 190 | G25: 679.305 | H25: 680.3341417 | I25: =+I23-I24 -> 681.3648425 | J25: =+J23-J24 -> 682.3971048 | K25: 683.430931 | L25: 684.4663234 | M25: 685.5032844 | N25: 686.5418164 | O25: 687.5819218
B26: Combustible Fósil | C26: Miles de Litros | G26: 284.651 | H26: 212.65 | I26: =+I25*$C$12 -> 212.9721631 | J26: =+J25*$C$12 -> 213.2948142 | K26: 213.6179541 | L26: 213.9415836 | M26: 214.2657034 | N26: 214.5903143 | O26: 214.9154169
B27: Energía Vendida | C27: MWh | F27: 153.167 | G27: 575.524 | H27: 596.267 | I27: =I25*$C$20 -> 587.2272765 | J27: =J25*$C$20 -> 588.1169211 | K27: 589.0079136 | L27: 589.9002559 | M27: 590.7939501 | N27: 591.6889982 | O27: 592.5854023
B28: Cantidad de Usuarios | F28: 406 | G28: 490 | H28: 505
B29: Consumo por usuario | C29: kWh/usuario-mes | F29: =(F27*1000/F28)/12 -> 31.43821839 | G29: =(G27*1000/G28)/12 -> 97.87823129 | H29: =(H27*1000/H28)/12 -> 98.39389439
B30: Demanda Máxima | C30: MW | G30: 0.169 | H30: 0.159
B31: Potencia Instalada | C31: MW | F31: 0.57 | G31: 0.695 | H31: =+C10 -> 0.464
B32: Pot. Efectiva a Temp. Media | C32: MW | F32: 0.13 | G32: 0.648 | H32: =+C11 -> 0.398
B33: Factor de Planta | F33: =F25/(F32*8760) -> 0.1668422901 | G33: =G25/(G32*8760) -> 0.1196701125 | H33: =H25/(H32*8760) -> 0.1951349618
B39: Calculo del Factor de Emisión
B40: EF CO2,j = COEF i,j = | C40: =+G19 -> 0.076597356 | D40: =+H19 -> gCO2/BTU | E40: Diesel
D42: =+D22 -> 2014 | E42: =+E22 -> 2015 | F42: =+F22 -> 2016 | G42: =+G22 -> 2017 | H42: =+H22 -> 2018 | I42: =+H42+1 -> 2019 | J42: 2020 | K42: 2021 | L42: 2022 | M42: 2023 | N42: 2024 | O42: 2025
B43: EG y = | C43: MWh | F43: =+F23 -> 190 | G43: 679.305 | H43: 680.3341417 | I43: 681.3648425 | J43: 682.3971048 | K43: 683.430931 | L43: 684.4663234 | M43: 685.5032844 | N43: 686.5418164 | O43: 687.5819218
B44: GEN j,bl = | C44: MWh | F44: =+F25 -> 190 | G44: 679.305 | H44: 680.3341417 | I44: 681.3648425 | J44: 682.3971048 | K44: 683.430931 | L44: 684.4663234 | M44: 685.5032844 | N44: 686.5418164 | O44: 687.5819218
B45: FC j,y = | C45: Miles de Litros | G45: 284.651 | H45: 212.65 | I45: 212.9721631 | J45: 213.2948142 | K45: 213.6179541 | L45: 213.9415836 | M45: 214.2657034 | N45: 214.5903143 | O45: 214.9154169
B46: NCV j = | C46: Btu/l | G46: 33710 | H46: =+G46 -> 33710 | I46: =+H46 -> 33710 | J46: 33710 | K46: 33710 | L46: 33710 | M46: 33710 | N46: 33710 | O46: 33710
B47: EF co2,j = | C47: gCO2/BTU | G47: =+C40 -> 0.076597356 | H47: =+G47 -> 0.076597356 | I47: 0.076597356 | J47: 0.076597356 | K47: 0.076597356 | L47: 0.076597356 | M47: 0.076597356 | N47: 0.076597356 | O47: 0.076597356
B48: BE y = | C48: tCO2/año | G48: =+G47*G46*G45/1000 -> 734.9964564 | H48: =+H47*H46*H45/1000 -> 549.0828996 | I48: 549.9147558 | J48: 550.7478723 | K48: 551.5822509 | L48: 552.4178936 | M48: 553.2548023 | N48: 554.092979 | O48: 554.9324254
B49: EF bl = | C49: tCO2/MWh | G49: =+G48/G43 -> 1.081982992 | H49: =+H48/H43 -> 0.8070782663 | I49: =+I48/I43 -> 0.8070782663 | J49: =+J48/J43 -> 0.8070782663 | K49: 0.8070782663 | L49: 0.8070782663 | M49: 0.8070782663 | N49: 0.8070782663 | O49: 0.8070782663
B51: Evolución Necesidad de Potencia
B52: Potencia Instalada | C52: MW | D52: =+D31 -> 0 | E52: 0 | F52: 0.57 | G52: 0.695 | H52: 0.464 | I52: =+H52 -> 0.464 | J52: =($H$52/$H$53)*J53 -> 0.5443294547 | K52: =+J52 -> 0.5443294547 | L52: =($H$52/$H$53)*L53 -> 0.5459800136 | M52: =+L52 -> 0.5459800136 | N52: =($H$52/$H$53)*N53 -> 0.5476355775 | O52: =+N52 -> 0.5476355775
B53: Pot. Efectiva a Temp. Media | C53: MW | D53: 0 | E53: 0 | F53: 0.13 | G53: 0.648 | H53: 0.398 | I53: =I25/(I54*8760) -> 0.4661969975 | J53: 0.4669032822 | K53: 0.467610637 | L53: 0.4683190634 | M53: 0.469028563 | N53: 0.4697391376 | O53: 0.4704507886
B54: Factor de Planta | D54: 0 | E54: 0 | F54: 0.1668422901 | G54: 0.1196701125 | H54: 0.1951349618 | I54: =+F54 -> 0.1668422901 | J54: =+I54 -> 0.1668422901 | K54: 0.1668422901 | L54: 0.1668422901 | M54: 0.1668422901 | N54: 0.1668422901 | O54: 0.1668422901
B55: Adiciones de capacidad | C55: MW | L55: =+L52-K52 -> 0.001650558926 | M55: =+M52-L52 -> 0 | N55: =+N52-M52 -> 0.001655563881 | O55: =+O52-N52 -> 0
B57: Donde
B58: GEN j,bl = | C58: MWh | D58: Electricidad (MWh) generada por el sistema aislado de la fuente "j"
B59: FC j,y = | C59: Miles de litros | D59: Cantidad de Combustible i (masa o volumen) consumido por la fuente "j"
B60: NCV j = | C60: Btu/litro | D60: Poder Calorífico Inferior del combustible "j"
B61: EF co2,j = | C61: gCO2/BTU | D61: Coeficiente de emisiones de CO2 del combustible
B62: BE y = | C62: tCO2/año | D62: Línea de Base de emisiones
B63: EG y = | C63: MWh | D63: Electricidad abastecida al sistema Aislado en el año "y"
B64: EF bl = | C64: tCO2/MWh | D64: Línea de Base del Factor de Emisiones del sistema aislado
B74: ACTIVIDADES DEL PROYECTO
B75: Las emisiones de referencia se calculan considerando el consumo de combustible que se hubiera utilizado para generar la cantidad equivalente de energía en ausencia de la actividad del proyecto.
B79: Opción 2: basada en la generación anual de electricidad por la actividad del proyecto
B80: Calculo de línea :
F81: Ecuación 1
F83: Ecuación 2
B84: Donde:
B85: E BL,y = | C85: MWh | D85: Línea de Base de Energía, y
B86: EG i,y = | C86: MWh | D86: Electricidad generada por las actividades del proyecto en el año y
B87: TDL = | C87: % | D87: Promedio histórico de perdidas técnicas (Transmisión y distribución)
B88: EF CO2,y = | C88: tCO2/MWh | D88: Línea de Base del Factor de Emisiones del sistema aislado
B89: BE CO2, y = | C89: tCO2/año | D89: Línea de Base de Emisiones
D91: =+D42 -> 2014 | E91: 2015 | F91: 2016 | G91: 2017 | H91: 2018 | I91: 2019 | J91: 2020 | K91: 2021 | L91: 2022 | M91: 2023 | N91: 2024 | O91: 2025
B92: EG i,y = | C92: MWh | K92: =L92/12*8 -> 190.5319208 | L92: =+H8*H10*8760/1000 -> 285.7978812 | M92: =+L92 -> 285.7978812 | N92: =+M92 -> 285.7978812 | O92: =+N92 -> 285.7978812
B93: TDL = | C93: % | K93: =1-$C$20 -> 0.1381602926 | L93: =1-$C$20 -> 0.1381602926 | M93: 0.1381602926 | N93: 0.1381602926 | O93: 0.1381602926
B94: E BL,y = | C94: MWh | K94: =+K92*(1-K93) -> 164.2079749 | L94: =+L92*(1-L93) -> 246.3119623 | M94: =+M92*(1-M93) -> 246.3119623 | N94: =+N92*(1-N93) -> 246.3119623 | O94: =+O92*(1-O93) -> 246.3119623
B95: EF CO2,y = | C95: tCO2/MWh | K95: =(H48/H23) -> 0.8070782663 | L95: =+K95 -> 0.8070782663 | M95: =+L95 -> 0.8070782663 | N95: =+M95 -> 0.8070782663 | O95: =+N95 -> 0.8070782663
B96: BE CO2, y = | C96: tCO2/año | K96: =+K95*K94 -> 132.5286877 | L96: =+L95*L94 -> 198.7930315 | M96: 198.7930315 | N96: 198.7930315 | O96: 198.7930315
D100: =+D91 -> 2014 | E100: =+E91 -> 2015 | F100: 2016 | G100: 2017 | H100: 2018 | I100: 2019 | J100: 2020 | K100: 2021 | L100: 2022 | M100: 2023 | N100: 2024 | O100: 2025
B101: Sin Proyecto
B102: Generación total | C102: MWh | D102: =+D23 -> 0 | E102: =+E23 -> 0 | F102: 190 | G102: 679.305 | H102: 680.3341417 | I102: 681.3648425 | J102: 682.3971048 | K102: 683.430931 | L102: 684.4663234 | M102: 685.5032844 | N102: 686.5418164 | O102: 687.5819218
B103: Emisiones de CO2e | C103: tCO2/año | D103: =+D48 -> 0 | E103: 0 | F103: 0 | G103: 734.9964564 | H103: 549.0828996 | I103: 549.9147558 | J103: 550.7478723 | K103: 551.5822509 | L103: 552.4178936 | M103: 553.2548023 | N103: 554.092979 | O103: 554.9324254
B104: Con Proyecto
B105: Generación Combustible Fosil | C105: MWh | D105: =+D25-D92 -> 0 | E105: =+E25-E92 -> 0 | F105: 190 | G105: 679.305 | H105: 680.3341417 | I105: 681.3648425 | J105: 682.3971048 | K105: 492.8990101 | L105: 398.6684421 | M105: 399.7054032 | N105: 400.7439352 | O105: 401.7840406
B106: Combustible Fósil | C106: Miles de Litros | D106: =+D26 -> 0 | E106: =+E26 -> 0 | F106: 0 | G106: 284.651 | H106: 212.65 | I106: =+I105*$C$12 -> 212.9721631 | J106: =+J105*$C$12 -> 213.2948142 | K106: =+K105*$C$12 -> 154.0639637 | L106: 124.610598 | M106: 124.9347178 | N106: 125.2593286 | O106: 125.5844312
B107: Emisiones de CO2e | C107: tCO2/año | D107: =+D103-D96 -> 0 | E107: 0 | F107: 0 | G107: 734.9964564 | H107: 549.0828996 | I107: 549.9147558 | J107: 550.7478723 | K107: 419.0535632 | L107: 353.6248621 | M107: 354.4617708 | N107: 355.2999474 | O107: 356.1393939
B108: Factor Emisiones con Proyecto | C108: tCO2/MWh | G108: =G107/G102 -> 1.081982992 | H108: 0.8070782663 | I108: 0.8070782663 | J108: 0.8070782663 | K108: 0.6131615416 | L108: 0.5166431861 | M108: 0.5170825273 | N108: 0.517521204 | O108: 0.517959217

Sheet Rosario del Yata
B2: FICHA TECNICA DEL SISTEMA AISLADO | F2: PROYECTOS PREVISTOS
C3: 8 | S3: IPPC - DATA
A4: 2 | B4: Departamento | C4: =VLOOKUP($C$3,'[11]Potencia Inst y Efect'!$A$9:$W$40,A4,0) -> Beni | F4: NO TIENE PROYECTOS PREVISTOS, SOLO EXPANSION COMB. FOSIL | K4: X | S4: EFCO2,GAS | T4: 0.0543 | U4: tCO2/GJ | V4: kgCO2/MJ | W4: Source for Gas EF - IPCC 2006 (Lower value)
A5: 3 | B5: Provincia | C5: =VLOOKUP($C$3,'[11]Potencia Inst y Efect'!$A$9:$W$40,A5,0) -> Vaca Diez | S5: EFCO2,DIESEL | T5: 0.0726 | U5: tCO2/GJ | V5: kgCO2/MJ | W5: Source for Diesel EF - IPCC 2006 (Lower value)
A6: 4 | B6: Sistema Eléctrico | C6: =VLOOKUP($C$3,'[11]Potencia Inst y Efect'!$A$9:$W$40,A6,0) -> Rosario del Yata | U6: Value | V6: Units
A7: 5 | B7: Empresa | C7: =VLOOKUP($C$3,'[11]Potencia Inst y Efect'!$A$9:$W$40,A7,0) -> ENDE DELBENI S.A.M. | U7: 0.00105506 | V7: MJ/Btu
A8: 6 | B8: Combustible | C8: =VLOOKUP($C$3,'[11]Potencia Inst y Efect'!$A$9:$W$40,A8,0) -> Diesel | S8: Conversion factors | U8: 1.05506e-06 | V8: GJ/Btu
A9: 10 | B9: Potencia Instalada MVA | C9: =VLOOKUP($C$3,'[11]Potencia Inst y Efect'!$A$9:$W$40,A9,0) -> 1.208
A10: 15 | B10: Potencia Instalada MW | C10: =VLOOKUP($C$3,'[11]Potencia Inst y Efect'!$A$9:$W$40,A10,0) -> 0.9664 | S10: Emission Factors
A11: 21 | B11: Potencia a Temp. Media | C11: =VLOOKUP($C$3,'[11]Potencia Inst y Efect'!$A$9:$W$40,A11,0) -> 0.77312 | T11: CO2 Emissions Factor Natural Gas | U11: =T4*1000000 -> 54300 | V11: gCO2/GJ
B12: Consumo especifico (lts/kWh) | C12: =SUM(G26:H26)/SUM(G25:H25) -> 0.4526918681 | T12: CO2 Emissions Factor Natural Gas (g/BTU) | U12: =U11*U8 -> 0.057289758 | V12: gCO2/BTU
A13: 8 | B13: Energía Alternativa
A14: 11 | B14: Potencia Instalada MVA | T14: CO2 Emissions Factor Natural Diesel | U14: =T5*1000000 -> 72600 | V14: gCO2/GJ
A15: 16 | B15: Potencia Instalada MW | T15: CO2 Emissions Factor Diesel (g/BTU) | U15: =U14*U8 -> 0.076597356 | V15: gCO2/BTU
A16: 22 | B16: Potencia a Temp. Media
B17: Categoría | C17: Pequeña Escala | F17: Factores de Emisiones | T17: Oxidation Factor Natural Gas | U17: 1 | V17: Source for Gas OXID - IPCC 2006
B18: Metodología Aplicable Línea de Base | C18: AMS I.A | F18: Gas Natural | G18: =54300*0.00000105506 -> 0.057289758 | H18: gCO2/BTU | T18: Oxidation FactorDiesel | U18: 1 | V18: Source for Gas OXID - IPCC 2006
B19: % Crecimiento Acumulativo Anual (*) | C19: 0.055 | F19: Diesel | G19: =72600*0.00000105506 -> 0.076597356 | H19: gCO2/BTU
B20: Factor Energía Vendida/Generación Bruta | C20: =SUM(H27)/SUM(H25) -> 0.7700524159
B21: (*) Asumimos crecimiento de ventas en sistemas aislados del año 2018
C22: Unidades | D22: 2014 | E22: =+D22+1 -> 2015 | F22: =+E22+1 -> 2016 | G22: 2017 | H22: 2018 | I22: 2019 | J22: 2020 | K22: 2021 | L22: 2022 | M22: 2023 | N22: 2024 | O22: 2025
B23: Generación Total | C23: MWh | G23: =+G24+G25 -> 58.606 | H23: 171.513 | I23: =H23*(1+$C$19) -> 180.946215 | J23: =I23*(1+$C$19) -> 190.8982568 | K23: 201.397661 | L23: 212.4745323 | M23: 224.1606316 | N23: 236.4894663 | O23: 249.496387
B24: Generación Energía Renovable | C24: MWh
B25: Generación | C25: MWh | G25: 58.606 | H25: 171.513 | I25: =+I23-I24 -> 180.946215 | J25: =+J23-J24 -> 190.8982568 | K25: 201.397661 | L25: 212.4745323 | M25: 224.1606316 | N25: 236.4894663 | O25: 249.496387
B26: Combustible Fósil | C26: Miles de Litros | G26: 25.083 | H26: 79.09 | I26: =+I25*$C$12 -> 81.9128801 | J26: =+J25*$C$12 -> 86.4180885 | K26: 91.17108337 | L26: 96.18549296 | M26: 101.4756951 | N26: 107.0568583 | O26: 112.9449855
B27: Energía Vendida | C27: MWh | G27: 45.708 | H27: 132.074 | I27: =I25*$C$20 -> 139.33807 | J27: =J25*$C$20 -> 147.0016638 | K27: 155.0867554 | L27: 163.6165269 | M27: 172.6154359 | N27: 182.1092849 | O27: 192.1252955
B28: Cantidad de Usuarios | G28: 131 | H28: 148
B29: Consumo por usuario | C29: kWh/usuario-mes | G29: =(G27*1000/G28)/12 -> 29.07633588 | H29: =(H27*1000/H28)/12 -> 74.36599099
B30: Demanda Máxima | C30: MW | G30: 0.036 | H30: 0.048
B31: Potencia Instalada | C31: MW | G31: 0.2 | H31: =+C10 -> 0.9664
B32: Pot. Efectiva a Temp. Media | C32: MW | G32: 0.175 | H32: =+C11 -> 0.77312
B33: Factor de Planta | G33: =G25/(G32*8760) -> 0.03822961513 | H33: =H25/(H32*8760) -> 0.02532480028
B39: Calculo del Factor de Emisión
B40: EF CO2,j = COEF i,j = | C40: =+G19 -> 0.076597356 | D40: =+H19 -> gCO2/BTU | E40: Diesel
D42: =+D22 -> 2014 | E42: =+E22 -> 2015 | F42: =+F22 -> 2016 | G42: =+G22 -> 2017 | H42: =+H22 -> 2018 | I42: =+H42+1 -> 2019 | J42: 2020 | K42: 2021 | L42: 2022 | M42: 2023 | N42: 2024 | O42: 2025
B43: EG y = | C43: MWh | G43: =+G23 -> 58.606 | H43: 171.513 | I43: 180.946215 | J43: 190.8982568 | K43: 201.397661 | L43: 212.4745323 | M43: 224.1606316 | N43: 236.4894663 | O43: 249.496387
B44: GEN j,bl = | C44: MWh | G44: =+G25 -> 58.606 | H44: 171.513 | I44: 180.946215 | J44: 190.8982568 | K44: 201.397661 | L44: 212.4745323 | M44: 224.1606316 | N44: 236.4894663 | O44: 249.496387
B45: FC j,y = | C45: Miles de Litros | G45: 25.083 | H45: 79.09 | I45: 81.9128801 | J45: 86.4180885 | K45: 91.17108337 | L45: 96.18549296 | M45: 101.4756951 | N45: 107.0568583 | O45: 112.9449855
B46: NCV j = | C46: Btu/l | G46: 33710 | H46: =+G46 -> 33710 | I46: =+H46 -> 33710 | J46: 33710 | K46: 33710 | L46: 33710 | M46: 33710 | N46: 33710 | O46: 33710
B47: EF co2,j = | C47: gCO2/BTU | G47: =+C40 -> 0.076597356 | H47: =+G47 -> 0.076597356 | I47: =+H47 -> 0.076597356 | J47: 0.076597356 | K47: 0.076597356 | L47: 0.076597356 | M47: 0.076597356 | N47: 0.076597356 | O47: =+N47 -> 0.076597356
B48: BE y = | C48: tCO2/año | G48: =+G47*G46*G45/1000 -> 64.76673581 | H48: =+H47*H46*H45/1000 -> 204.2180415 | I48: 211.5069914 | J48: 223.1398759 | K48: 235.4125691 | L48: 248.3602604 | M48: 262.0200747 | N48: 276.4311788 | O48: 291.6348936
B49: EF bl = | C49: tCO2/MWh | G49: =+G48/G43 -> 1.105121247 | H49: =+H48/H43 -> 1.190685496 | I49: 1.168894256 | J49: 1.168894256 | K49: 1.168894256 | L49: 1.168894256 | M49: 1.168894256 | N49: 1.168894256 | O49: 1.168894256
B51: Evolución Necesidad de Potencia
B52: Potencia Instalada | C52: MW | D52: =+D31 -> 0 | E52: 0 | F52: 0 | G52: 0.2 | H52: 0.9664 | I52: =+H52 -> 0.9664 | J52: =+I52 -> 0.9664 | K52: 0.9664 | L52: 0.9664 | M52: 0.9664 | N52: 0.9664 | O52: 0.9664
B53: Pot. Efectiva a Temp. Media | C53: MW | D53: 0 | E53: 0 | F53: 0 | G53: 0.175 | H53: 0.77312 | I53: =+H53 -> 0.77312 | J53: 0.77312 | K53: 0.77312 | L53: 0.77312 | M53: 0.77312 | N53: 0.77312 | O53: 0.77312
B54: Factor de Planta | D54: 0 | E54: 0 | F54: 0 | G54: 0.03822961513 | H54: 0.02532480028 | I54: =I25/(I53*8760) -> 0.02671766429 | J54: =J25/(J53*8760) -> 0.02818713583 | K54: 0.0297374283 | L54: 0.03137298685 | M54: 0.03309850113 | N54: 0.03491891869 | O54: 0.03683945922
B55: Adiciones de capacidad | C55: MW | I55: =+I52-H52 -> 0 | J55: 0 | K55: 0 | L55: =+L52-K52 -> 0 | M55: =+M52-L52 -> 0 | N55: =+N52-M52 -> 0 | O55: =+O52-N52 -> 0
B57: Donde
B58: GEN j,bl = | C58: MWh | D58: Electricidad (MWh) generada por el sistema aislado de la fuente "j"
B59: FC j,y = | C59: Miles de litros | D59: Cantidad de Combustible i (masa o volumen) consumido por la fuente "j"
B60: NCV j = | C60: Btu/litro | D60: Poder Calorífico Inferior del combustible "j"
B61: EF co2,j = | C61: gCO2/BTU | D61: Coeficiente de emisiones de CO2 del combustible
B62: BE y = | C62: tCO2/año | D62: Línea de Base de emisiones
B63: EG y = | C63: MWh | D63: Electricidad abastecida al sistema Aislado en el año "y"
B64: EF bl = | C64: tCO2/MWh | D64: Línea de Base del Factor de Emisiones del sistema aislado

Sheet El Sena
B2: FICHA TECNICA DEL SISTEMA AISLADO | F2: PROYECTOS POREVISTOS
C3: 2 | D3: S2
A4: 2 | B4: Departamento | C4: =VLOOKUP($C$3,'[11]Potencia Inst y Efect'!$A$9:$W$40,A4,0) -> Pando | F4: NO TIENE PROYECTOS PREVISTOS, SOLO EXPANSION COMB. FOSIL | K4: X
A5: 3 | B5: Provincia | C5: =VLOOKUP($C$3,'[11]Potencia Inst y Efect'!$A$9:$W$40,A5,0) -> Madre de Dios
A6: 4 | B6: Sistema Electrico | C6: =VLOOKUP($C$3,'[11]Potencia Inst y Efect'!$A$9:$W$40,A6,0) -> El Sena
A7: 5 | B7: Empresa | C7: =VLOOKUP($C$3,'[11]Potencia Inst y Efect'!$A$9:$W$40,A7,0) -> ENDE
A8: 6 | B8: Combustible | C8: =VLOOKUP($C$3,'[11]Potencia Inst y Efect'!$A$9:$W$40,A8,0) -> Diesel
A9: 10 | B9: Potencia Instalada MVA | C9: =VLOOKUP($C$3,'[11]Potencia Inst y Efect'!$A$9:$W$40,A9,0) -> 2.767
A10: 15 | B10: Potencia Instalada MW | C10: =VLOOKUP($C$3,'[11]Potencia Inst y Efect'!$A$9:$W$40,A10,0) -> 2.216
A11: 21 | B11: Potencia a Temp. Media | C11: =VLOOKUP($C$3,'[11]Potencia Inst y Efect'!$A$9:$W$40,A11,0) -> 1.3
B12: Consumo especifico (lts/kWh) | C12: =SUM(F27:H27)/SUM(F26:H26) -> 0.3120577859
A13: 8 | B13: Energia Alternativa | D13: Solar(*)
A14: 11 | B14: Potencia Instalada MVA | D14: =VLOOKUP($D$3,'[11]Potencia Inst y Efect'!$A$9:$W$40,A14,0) -> 0.4
A15: 16 | B15: Potencia Instalada MW | D15: =VLOOKUP($D$3,'[11]Potencia Inst y Efect'!$A$9:$W$40,A15,0) -> 0.4
A16: 22 | B16: Potencia a Temp. Media | D16: =VLOOKUP($D$3,'[11]Potencia Inst y Efect'!$A$9:$W$40,A16,0) -> 0
B17: (*) Ingresa en operación el 01/10/2018
B18: Categoria | C18: Pequeña Escala | F18: Factores de Emisiones
B19: Metodologia Aplicable | C19: AMS I.A | F19: Gas Natural | G19: =54300*0.00000105506 -> 0.057289758 | H19: gCO2/BTU
B20: % Crecimiento Acumulativo Anual (*) | C20: 0.055 | F20: Diesel | G20: =72600*0.00000105506 -> 0.076597356 | H20: gCO2/BTU
B21: Factor Energia Vendida/Generacion Bruta | C21: =SUM(F28:H28)/SUM(F26:H26) -> 0.8870624006
B22: (*) Asumimos crecimiento de ventas en sistemas aislados del año 2018
C23: Unidades | D23: 2014 | E23: =+D23+1 -> 2015 | F23: =+E23+1 -> 2016 | G23: 2017 | H23: 2018 | I23: 2019 | J23: 2020 | K23: 2021 | L23: 2022 | M23: 2023 | N23: 2024 | O23: 2025
B24: Generacion Total | C24: MWh | D24: =+D25+D26 -> 646.0049 | E24: =+E25+E26 -> 1248.1834 | F24: 1677.7594 | G24: 1881.0661 | H24: 2309.062 | I24: =H24*(1+$C$20) -> 2436.06041 | J24: =I24*(1+$C$20) -> 2570.043733 | K24: 2711.396138 | L24: 2860.522925 | M24: 3017.851686 | N24: 3183.833529 | O24: 3358.944373
B25: Generacion Energia Renovable | C25: MWh | H25: 95.87 | I25: 203.29068 | J25: =+I25 -> 203.29068 | K25: 203.29068 | L25: 203.29068 | M25: 203.29068 | N25: 203.29068 | O25: 203.29068
B26: Generacion | C26: MWh | D26: 646.0049 | E26: 1248.1834 | F26: 1677.7594 | G26: 1881.0661 | H26: 2213.192 | I26: =+I24-I25 -> 2232.76973 | J26: =+J24-J25 -> 2366.753053 | K26: 2508.105458 | L26: 2657.232245 | M26: 2814.561006 | N26: 2980.542849 | O26: 3155.653693
B27: Combustible Fosil | C27: Miles de Litros | D27: 207.085 | E27: 380.248 | F27: 518.607001 | G27: 584.762 | H27: 697.834 | I27: =+I26*$C$12 -> 696.7531783 | J27: =+J26*$C$12 -> 738.5637173 | K27: 782.6738359 | L27: 829.210011 | M27: 878.3056758 | N27: 930.1016021 | O27: 984.7463044
B28: Energia Vendida | C28: MWh | D28: 327.1148 | E28: 869.546 | F28: 1342.3541 | G28: 1672.1506 | H28: 2105.635 | I28: =I24*$C$21 -> 2160.937595 | J28: =J24*$C$21 -> 2279.789163 | K28: 2405.177567 | L28: 2537.462333 | M28: 2677.022762 | N28: 2824.259013 | O28: 2979.593259
B29: Cantidad de Usuarios | D29: 238 | E29: 447 | F29: 647 | G29: 883 | H29: 976
B30: Demanda Maxima | C30: MW | F30: 0.431 | G30: 0.445 | H30: 0.673
B31: Consumo por usuario | C31: kWh/usuario-mes | D31: =(D28*1000/D29)/12 -> 114.5359944 | E31: =(E28*1000/E29)/12 -> 162.1077554 | F31: =(F28*1000/F29)/12 -> 172.8946548 | G31: =(G28*1000/G29)/12 -> 157.8096074 | H31: =(H28*1000/H29)/12 -> 179.7844092
B32: Potencia Instalada | C32: MW | E32: 1.42 | F32: 2.216 | G32: 2.216 | H32: =+C10 -> 2.216
B33: Pot. Efectiva a Temp. Media | C33: MW | E33: 1.1 | F33: 1.3 | G33: 1.3 | H33: =+C11 -> 1.3
B34: Factor de Planta | E34: =E26/(E33*8760) -> 0.1295333541 | F34: =F26/(F33*8760) -> 0.1473269582 | G34: =G26/(G33*8760) -> 0.1651796716 | H34: =H26/(H33*8760) -> 0.194344222
B40: Calculo del Factor de Emision
B41: COEF i,j = | C41: =+G20 -> 0.076597356 | D41: =+H20 -> gCO2/BTU | E41: Diesel
D43: =+D23 -> 2014 | E43: =+E23 -> 2015 | F43: =+F23 -> 2016 | G43: =+G23 -> 2017 | H43: =+H23 -> 2018 | I43: =+H43+1 -> 2019 | J43: 2020 | K43: 2021 | L43: 2022 | M43: 2023 | N43: 2024 | O43: 2025
B44: EG y = | C44: MWh | D44: =+D24 -> 646.0049 | E44: =+E24 -> 1248.1834 | F44: 1677.7594 | G44: 1881.0661 | H44: 2309.062 | I44: 2436.06041 | J44: 2570.043733 | K44: 2711.396138 | L44: 2860.522925 | M44: 3017.851686 | N44: 3183.833529 | O44: 3358.944373
B45: GEN j,bl = | C45: MWh | D45: =+D26 -> 646.0049 | E45: 1248.1834 | F45: 1677.7594 | G45: 1881.0661 | H45: 2213.192 | I45: 2232.76973 | J45: 2366.753053 | K45: 2508.105458 | L45: 2657.232245 | M45: 2814.561006 | N45: 2980.542849 | O45: 3155.653693
B46: FC j,y = | C46: Miles de litros | D46: =+D27 -> 207.085 | E46: 380.248 | F46: 518.607001 | G46: 584.762 | H46: 697.834 | I46: 696.7531783 | J46: 738.5637173 | K46: 782.6738359 | L46: 829.210011 | M46: 878.3056758 | N46: 930.1016021 | O46: 984.7463044
B47: NCV j = | C47: Btu/litro | D47: 33710 | E47: =+D47 -> 33710 | F47: =+E47 -> 33710 | G47: 33710 | H47: 33710 | I47: 33710 | J47: 33710 | K47: 33710 | L47: 33710 | M47: 33710 | N47: 33710 | O47: 33710
B48: EF co2,j = | C48: gCO2/BTU | D48: =+C41 -> 0.076597356 | E48: =+D48 -> 0.076597356 | F48: 0.076597356 | G48: 0.076597356 | H48: 0.076597356 | I48: 0.076597356 | J48: 0.076597356 | K48: 0.076597356 | L48: 0.076597356 | M48: 0.076597356 | N48: 0.076597356 | O48: 0.076597356
B49: BE y = | C49: tCO2/año | D49: =D46*D47*D48/1000 -> 534.7135305 | E49: =E46*E47*E48/1000 -> 981.8371709 | F49: 1339.093514 | G49: 1509.91213 | H49: 1801.874988 | I49: 1799.084201 | J49: 1907.043063 | K49: 2020.939662 | L49: 2141.100575 | M49: 2267.870337 | N49: 2401.612436 | O49: 2542.710351
B50: EF bl = | C50: tCO2/MWh | D50: =+D49/D44 -> 0.8277236449 | E50: =+E49/E44 -> 0.7866129055 | F50: 0.7981439499 | G50: 0.8026895654 | H50: 0.7803493313 | I50: 0.738521998 | J50: 0.7420274757 | K50: 0.7453502033 | L50: 0.7484997081 | M50: 0.7514850207 | N50: 0.754314701 | O50: 0.7569968623
B52: Evolucion Necesidad de Potencia
B53: Potencia Instalada | C53: MW | D53: =+D32 -> 0 | E53: 1.42 | F53: 2.216 | G53: 2.216 | H53: 2.216 | I53: =+H53 -> 2.216 | J53: =($H$53/$H$54)*J54 -> 2.369755884 | K53: =+J53 -> 2.369755884 | L53: =($H$53/$H$54)*L54 -> 2.660603624 | M53: =+L53 -> 2.660603624 | N53: =($H$53/$H$54)*N54 -> 2.98432443 | O53: =+N53 -> 2.98432443
B54: Pot. Efectiva a Temp. Media | C54: MW | D54: 0 | E54: 1.1 | F54: 1.3 | G54: 1.3 | H54: 1.3 | I54: =I26/(I55*8760) -> 1.311499702 | J54: =J45/(J55*8760) -> 1.390199751 | K54: =K45/(K55*8760) -> 1.473228303 | L54: 1.560823426 | M54: 1.65323628 | N54: 1.750731841 | O54: 1.853589657
B55: Factor de Planta | D55: 0 | E55: 0.1295333541 | F55: 0.1473269582 | G55: 0.1651796716 | H55: 0.194344222 | I55: =+H55 -> 0.194344222 | J55: 0.194344222 | K55: 0.194344222 | L55: 0.194344222 | M55: 0.194344222 | N55: 0.194344222 | O55: 0.194344222
B56: Adiciones de capacidad | C56: MW | J56: =+J53-I53 -> 0.153755884 | K56: 0 | L56: 0.29084774 | M56: 0 | N56: 0.3237208058 | O56: 0
B58: Donde
B59: GEN j,bl = | C59: MWh | D59: Electricidad (MWh) generada por el sistema aislado de la fuente "j"
B60: FC j,y = | C60: Miles de litros | D60: Cantidad de Combustible i (masa o volumen) consumido por la fuente "j"
B61: NCV j = | C61: Btu/litro | D61: Poder Calorífico Inferior del combustible "j"
B62: EF co2,j = | C62: gCO2/BTU | D62: Coefiente de emisiones de CO2 del combustible
B63: BE y = | C63: tCO2/año | D63: Línea de Base de emisiones
B64: EG y = | C64: MWh | D64: Electricidad abastecida al sistema Aislado en el año y
B65: EF bl = | C65: tCO2/MWh | D65: Línea de Base del Factor de Emisiones del sistema aislado (tCO2e/MWh)

Sheet DESCRIPCION 6
B3: Demanda Máxima (kW) y Número de Consumidores de los sistemas Aislados
B4: Gestión 2018
B5: Empresa Eléctrica | C5: Sistema | D5: Demanda Máxima (kW) | E5: Número de Consumidores | F5: Combustible
B6: ENDE | C6: Cobija | D6: 12360 | E6: 17092 | F6: Diesel
C7: El Sena | D7: 673 | E7: 976 | F7: Diesel
C8: Guayaramerín | D8: 5140 | E8: 9030 | F8: Diesel
C9: Cachuela Esperanza | D9: 47 | E9: 148 | F9: Diesel
C10: Rosario del Yata | D10: 48 | E10: 148 | F10: Diesel
C11: Puerto Ustarez | D11: 8.91 | E11: 38 | F11: Diesel
B12: ENDE DELBENI S.A.M. | C12: Baures | D12: 210 | E12: 953 | F12: Diesel
C13: Bella Vista | D13: 202 | E13: 702 | F13: Diesel
C14: Huacaraje | D14: 159 | E14: 505 | F14: Diesel
C15: El Carmen de Itenez | D15: 77.3 | E15: 218 | F15: Diesel
C16: Exaltación | D16: 74 | E16: 159 | F16: Diesel
B17: CRE R.L. | C17: El Espino | D17: 31.62 | E17: 133 | F17: Diesel/Solar
C18: Charagua | D18: 1107 | E18: 3253 | F18: Gas
C19: Chiquitos | D19: 4380.218 | E19: 8470 | F19: Gas
C20: San Ignacio de Velasco | D20: 5050.678 | E20: 12184 | F20: Diesel
C21: Cordillera | D21: 6377.97 | E21: 14957 | F21: Gas
C22: Valles Cruceños | D22: 6340.804 | E22: 23104 | F22: Gas
C23: Las Misiones | D23: 11739.85521 | E23: 28263 | F23: Diesel / Gas
C24: German Busch | D24: 10252.71 | E24: 10771 | F24: Gas
B25: CER | C25: Riberalta | D25: 9824 | E25: 21407 | F25: Diesel
B26: SETAR | C26: Bermejo | D26: 6100 | E26: 12941 | F26: Gas
C27: Entre Ríos | D27: 1700 | E27: 5436 | F27: Gas
B28: ENDE GUARACACHI S.A. | C28: San Matías | D28: 1676.7 | E28: 2875 | F28: Gas
B29: TOTAL | E29: =SUM(E6:E25)+SUM(E26:E28) -> 173763

Sheet CAP VI-1
B3: Potencia instalada y efectiva al 31 de diciembre de 2018
E6: Potencia Instalada | O6: Potencia Efectiva a Temp. media
C7: Empresa | D7: Central | E7: (MVA) | J7: (MW) | O7: °C | P7: (MW)
E8: Hidro | F8: Termo | G8: E. Alternativas | H8: Total | J8: Hidro | K8: Termo | L8: E. Alternativas | M8: Total | P8: Hidro | Q8: Termo | R8: E. Alternativas | S8: Total
C9: GENERACIÓN - DISTRIBUCIÓN
C10: ENDE | D10: Cobija | F10: 28.2 | H10: =SUM(E10:G10) -> 28.2 | K10: 22.56 | M10: =SUM(J10:L10) -> 22.56 | O10: 40° | Q10: 19.5 | S10: =SUM(P10:R10) -> 19.5 | T10: =S10 -> 19.5
D11: El Sena | F11: 2.767 | H11: 2.767 | K11: 2.216 | M11: 2.216 | O11: 40° | Q11: 1.3 | S11: =SUM(P11:R11) -> 1.3 | T11: =S11 -> 1.3
D12: Guayaramerín | F12: 22.35 | H12: 22.35 | K12: 17.255 | M12: 17.255 | O12: 36° | Q12: 15.446 | S12: =SUM(P12:R12) -> 15.446 | T12: 15.446
D13: Cachuela Esperanza | F13: 0.809 | H13: 0.809 | K13: 0.647 | M13: 0.647 | O13: 36° | Q13: 0.5176 | S13: =SUM(P13:R13) -> 0.5176 | T13: 0.5176
D14: Rosario del Yata | F14: 1.208 | H14: 1.208 | K14: 0.9664 | M14: 0.9664 | O14: 36° | Q14: 0.77312 | S14: 0.77312 | T14: 0.77312
D15: Puerto Ustárez | F15: 0.235 | H15: 0.235 | K15: 0.188 | M15: 0.188 | O15: 34° | Q15: 0.141 | S15: 0.141 | T15: 0.141
C16: Total ENDE | F16: =SUM(F10:F15) -> 55.569 | H16: =SUM(H10:H15) -> 55.569 | K16: =SUM(K10:K15) -> 43.8324 | M16: =SUM(M10:M15) -> 43.8324 | Q16: =SUM(Q10:Q15) -> 37.67772 | S16: =SUM(P16:R16) -> 37.67772 | T16: =S23 -> 7.322
C17: ENDE DELBENI S.A.M. | D17: Baures | F17: 2.263 | H17: =SUM(E17:G17) -> 2.263 | K17: 1.81 | M17: =SUM(J17:L17) -> 1.81 | O17: 33° | Q17: 1.433 | S17: =SUM(P17:R17) -> 1.433 | T17: =S24 -> 4.8
D18: Bella Vista | F18: 1.774 | H18: =SUM(E18:G18) -> 1.774 | K18: 1.426 | M18: =SUM(J18:L18) -> 1.426 | O18: 33° | Q18: 1.111 | S18: 1.111 | T18: =S17 -> 1.433
D19: Huacaraje | F19: 0.58 | H19: =SUM(E19:G19) -> 0.58 | K19: 0.464 | M19: =SUM(J19:L19) -> 0.464 | O19: 33° | Q19: 0.398 | S19: 0.398 | T19: =S18 -> 1.111
D20: El Carmen de Iténez | F20: 0.16 | H20: =SUM(E20:G20) -> 0.16 | K20: 0.128 | M20: =SUM(J20:L20) -> 0.128 | O20: 32° | Q20: 0.096 | S20: 0.096 | T20: 0.398
D21: Exaltación | F21: 0.35 | H21: =SUM(E21:G21) -> 0.35 | K21: 0.28 | M21: =SUM(J21:L21) -> 0.28 | O21: 36° | Q21: 0.23 | S21: 0.23 | T21: 0.096
C22: Total ENDE DELBENI S.A.M. | F22: =SUM(F17:F21) -> 5.127 | H22: =SUM(H17:H21) -> 5.127 | K22: =SUM(K17:K21) -> 4.108 | M22: =SUM(M17:M21) -> 4.108 | Q22: =SUM(Q17:Q21) -> 3.268 | S22: =SUM(S17:S21) -> 3.268 | T22: =S21 -> 0.23
C23: ENDE GUARACACHI S.A. | D23: San Matías | F23: 10.556 | H23: =SUM(E23:G23) -> 10.556 | K23: 8.68 | M23: =SUM(J23:L23) -> 8.68 | O23: 25° | Q23: 7.322 | S23: =SUM(O23:R23) -> 7.322 | T23: =+S26 -> 11.55
D24: (1) Planta Solar Cobija | G24: 5.1 | H24: =SUM(E24:G24) -> 5.1 | L24: 5.1 | M24: =SUM(J24:L24) -> 5.1 | O24: 31° | R24: 4.8 | S24: =SUM(P24:R24) -> 4.8 | T24: =+S27 -> 2.28
C25: Total ENDE GUARACACHI S.A. | F25: =SUM(F23:F24) -> 10.556 | G25: =SUM(G23:G24) -> 5.1 | H25: =SUM(E25:G25) -> 15.656 | K25: =SUM(K23:K24) -> 8.68 | L25: =SUM(L24:L24) -> 5.1 | M25: 13.78 | Q25: =SUM(Q23:Q24) -> 7.322 | R25: =SUM(R23:R24) -> 4.8 | S25: 12.122 | T25: =+S29 -> 11.75
C26: SETAR | D26: Bermejo | F26: 18.056 | H26: =SUM(E26:G26) -> 18.056 | K26: 14.444 | M26: 14.444 | O26: 30° | Q26: 11.55 | S26: 11.55 | T26: =+S30 -> 19.05
D27: Entre Ríos | F27: 2.974 | H27: 2.974 | K27: 2.7 | M27: 2.7 | O27: 25° | Q27: 2.28 | S27: 2.28 | T27: 7.2
C28: Total SETAR | F28: =SUM(F26:F27) -> 21.03 | H28: 21.03 | K28: =SUM(K26:K27) -> 17.144 | M28: 17.144 | Q28: =SUM(Q26:Q27) -> 13.83 | S28: =SUM(P28:R28) -> 13.83 | T28: 6.792
C29: CRE R.L. | D29: Cordillera | F29: 15.83 | H29: 15.83 | K29: 12.674 | M29: 12.674 | O29: 35,5° | Q29: 11.75 | S29: =SUM(P29:R29) -> 11.75 | T29: 9.56
D30: Las Misiones | F30: 27.8 | H30: 27.8 | K30: 21.35 | M30: 21.35 | O30: 32,0° | Q30: 19.05 | S30: 19.05 | T30: 2.19
D31: Chiquitos | F31: 9.88 | H31: 9.88 | K31: 7.54 | M31: 7.54 | O31: 35,0° | Q31: 7.2 | S31: 7.2 | T31: 19.1
D32: San Ignacio de Velasco | F32: 9.8 | H32: 9.8 | K32: 7.84 | M32: 7.84 | O32: 30,0° | Q32: 6.792 | S32: 6.792 | T32: =+S36 -> 0.124
D33: Valles | F33: 14.5475 | H33: 14.5475 | K33: 11.638 | M33: 11.638 | O33: 35,0° | Q33: 9.56 | S33: 9.56 | T33: =S39 -> 15.78
D34: Charagua | F34: 3.13 | H34: =SUM(E34:G34) -> 3.13 | K34: 2.554 | M34: 2.554 | O34: 35,0° | Q34: 2.19 | S34: 2.19 | T34: =S41 -> 1.6
D35: German Busch | F35: 28.985 | H35: 28.985 | K35: 23.2 | M35: 23.2 | O35: 33,5° | Q35: 19.1 | S35: 19.1 | T35: =S43 -> 25
D36: (1) El Espino | F36: 0.08 | G36: 0.06 | H36: =SUM(E36:G36) -> 0.14 | K36: 0.064 | L36: 0.06 | M36: =SUM(J36:L36) -> 0.124 | O36: 35,5° | Q36: 0.065 | R36: 0.059 | S36: =SUM(P36:R36) -> 0.124 | T36: =S44 -> 2.2
C37: Total CRE R.L. | F37: =SUM(F29:F36) -> 110.0525 | G37: =SUM(G29:G36) -> 0.06 | H37: =SUM(H29:H36) -> 110.1125 | K37: =SUM(K29:K36) -> 86.86 | L37: =SUM(L29:L36) -> 0.06 | M37: =SUM(M29:M36) -> 86.92 | Q37: =SUM(Q29:Q36) -> 75.707 | R37: =SUM(R29:R36) -> 0.059 | S37: =SUM(S29:S36) -> 75.766 | T37: 16
C38: CER | D38: El Palmar | F38: 22.03 | H38: =SUM(E38:G38) -> 22.03 | K38: 16.12 | M38: =SUM(J38:L38) -> 16.12 | O38: 37,0° | Q38: 15.78 | S38: =SUM(P38:R38) -> 15.78 | T38: 4.78
C39: Total CER | F39: =F38 -> 22.03 | H39: =SUM(E39:G39) -> 22.03 | K39: =K38 -> 16.12 | M39: =SUM(J39:L39) -> 16.12 | Q39: =Q38 -> 15.78 | S39: =S38 -> 15.78 | T39: =S47 -> 3.916
C40: G&E S.A. | D40: El Puente | F40: 2.2 | H40: =SUM(E40:G40) -> 2.2 | K40: 1.92 | M40: =SUM(J40:L40) -> 1.92 | O40: 25,0° | Q40: 1.6 | S40: =SUM(P40:R40) -> 1.6 | T40: =S56 -> 2.238
C41: Total G&E S,A, | F41: 2.2 | H41: =SUM(E41:G41) -> 2.2 | K41: 1.92 | M41: =SUM(J41:L41) -> 1.92 | Q41: 1.6 | S41: =SUM(P41:R41) -> 1.6 | T41: =S57 -> 4.5
C42: AUTOPRODUCTORES | T42: =S58 -> 16.2
C43: AGUAÍ S.A. | D43: (2) Aguaí | G43: 27 | H43: =SUM(E43:G43) -> 27 | L43: 25 | M43: =SUM(J43:L43) -> 25 | O43: 27° | R43: 25 | S43: 25 | T43: =S48 -> 61.5
C44: Gravetal Bolivia S.A. | D44: Gravetal | F44: 3.9 | H44: 3.9 | K44: 3 | M44: 3 | O44: 30°-42° | Q44: 2.2 | S44: 2.2 | T44: 8.6
C45: IAGSA | D45: (2) Guabirá | G45: 31.25 | H45: 31.25 | L45: 25 | M45: 25 | O45: 28,0° | R45: 16 | S45: 16 | T45: 9.4
C46: PLUSPETROL | D46: Pluspetrol | F46: 5.92 | H46: 5.92 | K46: 4.78 | M46: 4.78 | O46: 38°-40° | Q46: 4.78 | S46: 4.78 | T46: 15
C47: IOL | D47: Industrias Oleaginosas Bolivia S.A. | F47: 7.066 | H47: 7.066 | K47: 3.946 | M47: 3.946 | O47: 34° | Q47: 3.916 | S47: 3.916 | T47: 11
C48: UNAGRO | D48: (2) Unagro | G48: 77 | H48: 77 | L48: 61.5 | M48: 61.5 | O48: 29° | R48: 61.5 | S48: 61.5 | T48: 1.6
C49: YPFB REFINACIÓN S.A. | D49: Guillermo Elder Bell | F49: 12 | H49: 12 | K49: 9.6 | M49: 9.6 | O49: 38,2° | Q49: 8.6 | S49: 8.6 | T49: 0.8
C50: YPFB REFINACIÓN S.A. | D50: Gualberto Villarroel | F50: 15 | H50: =SUM(E50:G50) -> 15 | K50: 12 | M50: 12 | O50: 18,5° | Q50: 9.4 | S50: 9.4
C51: EASBA | D51: 1Turbogenerador de Contrapresion | G51: 18.75 | H51: =SUM(E51:G51) -> 18.75 | L51: 15 | M51: 15 | O51: 25,7° | R51: 15 | S51: =SUM(P51:R51) -> 15
C52: EASBA | D52: 2 Turbogenerador de Extraccion | F52: 18.75 | H52: =SUM(E52:G52) -> 18.75 | K52: 15 | M52: 15 | O52: 25,7° | Q52: 11 | S52: =SUM(P52:R52) -> 11
C53: SINCHY WAYRA S.A. | D53: Aroifilia | F53: 3.896 | H53: 3.896 | K53: 2 | M53: 2 | O53: 19° | Q53: 1.6 | S53: =SUM(P53:R53) -> 1.6
C54: SINCHY WAYRA S.A. | D54: (3) Yocalla | E54: 1.5 | H54: 1.5 | J54: 1.2 | M54: 1.2 | P54: 0.8 | S54: =SUM(P54:R54) -> 0.8
C55: (5) TAHUAMANU S.A. | D55: Nicolás Suárez Pando | G55: 1.25 | H55: 1.25 | L55: 1 | M55: 1 | O55: 25,7°
C56: YPFB TRANSIERRA | D56: (4) ECV | F56: 2.826 | H56: =SUM(E56:G56) -> 2.826 | K56: 2.262 | M56: 2.262 | O56: 27° | Q56: 2.238 | S56: =SUM(P56:R56) -> 2.238
C57: PIL ANDINA S.A. | D57: Warnes | F57: 6 | H57: 6 | K57: 5.125 | M57: 5.125 | O57: 27° | Q57: 4.5 | S57: =SUM(P57:R57) -> 4.5
C58: ITACAMBA CEMENTO S.A. | D58: Yacuses | F58: 21.6 | H58: 21.6 | K58: 18.45 | M58: 18.45 | O58: 28° | Q58: 16.2 | S58: =SUM(P58:R58) -> 16.2
C59: Total Autoproductores | E59: =SUM(E43:E58) -> 1.5 | F59: =SUM(F43:F58) -> 96.958 | G59: =SUM(G43:G58) -> 155.25 | H59: =SUM(H43:H58) -> 253.708 | J59: =SUM(J43:J58) -> 1.2 | K59: =SUM(K43:K58) -> 76.163 | L59: =SUM(L43:L58) -> 127.5 | M59: =SUM(M43:M58) -> 204.863 | P59: =SUM(P43:P58) -> 0.8 | Q59: =SUM(Q43:Q58) -> 64.434 | R59: =SUM(R43:R58) -> 117.5 | S59: =SUM(S43:S58) -> 182.734
C60: Total Sistemas Aislados | E60: =E59+E41+E39+E37+E28+E25+E22+E16 -> 1.5 | F60: =F59+F41+F39+F37+F28+F25+F22+F16 -> 323.5225 | G60: =G59+G41+G39+G37+G28+G25+G22+G16 -> 160.41 | H60: =H59+H41+H39+H37+H28+H25+H22+H16 -> 485.4325 | J60: =J59+J41+J39+J37+J28+J25+J22+J16 -> 1.2 | K60: =K59+K41+K39+K37+K28+K25+K22+K16 -> 254.8274 | L60: =L59+L41+L39+L37+L28+L25+L22+L16 -> 132.66 | M60: =M59+M41+M39+M37+M28+M25+M22+M16 -> 388.6874 | P60: =P59+P41+P39+P37+P28+P25+P22+P16 -> 0.8 | Q60: =Q59+Q41+Q39+Q37+Q28+Q25+Q22+Q16 -> 219.61872 | R60: =R59+R41+R39+R37+R28+R25+R22+R16 -> 122.359 | S60: =S59+S41+S39+S37+S28+S25+S22+S16 -> 342.77772
C61: Fuente: Formularios ISE-130
C62: (1) Datos Unidades de Generación Fotovoltaíca
C63: (2) Datos Unidades de Generación Biomasa
C64: (3) Datos Unidades de Generación Hidroeléctrica
C65: (4) Estación de Compresión Villa Montes
C66: (5) La empresa no registró la postencia efectiva en la gestión 2018

Sheet Generacion Bruta
B2: Evolución de la generación bruta (GWh)
B3: Periodo 1996-2018
B5: Empresa | D5: Central/Sistema | E5: 2014 | F5: 2015 | G5: 2016 | H5: 2017 | I5: 2018
B7: Fotovoltaica
B8: ENDE GUARACAHI S.A. | D8: Cobija | E8: 0 | F8: 4.794375501 | G8: 5.6278184 | H8: 5.7761256 | I8: ='[12]CAP VI-5'!O7 -> 5.3198761
B9: CRE R.L. | D9: El Espino | E9: 0 | F9: 0 | G9: 0.03845124 | H9: 0.048443 | I9: ='[12]CAP VI-5'!O8 -> 0.048872
B10: Total Generación Fotovoltaíca | E10: 0 | F10: =+F8 -> 4.794375501 | G10: =SUM(G8:G9) -> 5.66626964 | H10: 5.8245686 | I10: =SUM(I8:I9) -> 5.3687481
B11: Termoeléctrica
B12: SETAR
D13: Bermejo | E13: 17.625435 | F13: 24.367994 | G13: 25.069998 | H13: 27.032792 | I13: ='[12]CAP VI-5'!O30 -> 28.138757
D14: Entre Ríos | E14: 4.69183 | F14: 5.963352 | G14: 6.826966 | H14: 7.2176 | I14: ='[12]CAP VI-5'!O31 -> 7.507126
D15: El Puente | E15: 0.80842 | F15: 0 | G15: 0 | H15: 0 | I15: 0
B16: Total SETAR | E16: 58.54516633 | F16: =SUM(F13:F15) -> 30.331346 | G16: =SUM(G13:G15) -> 31.896964 | H16: 34.250392 | I16: =SUM(I13:I15) -> 35.645883
B17: ENDE | D17: Cobija | E17: 52.0048047 | F17: 56.05418129 | G17: 55.73479449 | H17: 56.969076 | I17: ='[12]CAP VI-5'!O16 -> 57.831903
D18: El Sena | E18: 0.6460049 | F18: 1.2481834 | G18: 1.6777594 | H18: 1.8810661 | I18: ='[12]CAP VI-5'!O17 -> 2.213192
D19: Guayaramerín | E19: 0 | F19: 0 | G19: 0 | H19: 13.925585 | I19: ='[12]CAP VI-5'!O18 -> 27.108354
D20: Cachuela Esperanza | E20: 0 | F20: 0 | G20: 0 | H20: 0.049052 | I20: ='[12]CAP VI-5'!O19 -> 0.34882
D21: Rosario del Yata | E21: 0 | F21: 0 | G21: 0 | H21: 0.058606 | I21: ='[12]CAP VI-5'!O20 -> 0.171513
D22: Puerto Ustarez | E22: 0 | F22: 0 | G22: 0 | H22: 0 | I22: ='[12]CAP VI-5'!O21 -> 0.0279694724
B23: Total ENDE | E23: =SUM(E17:E22) -> 52.6508096 | F23: =SUM(F17:F22) -> 57.30236469 | G23: =SUM(G17:G22) -> 57.41255389 | H23: =SUM(H17:H22) -> 72.8833851 | I23: =SUM(I17:I22) -> 87.70175147
B24: ENDE DELBENI S.A.M | D24: Baures | E24: - | F24: - | G24: 0.27 | H24: 1.120359 | I24: ='[12]CAP VI-5'!O23 -> 1.345951944
D25: Bella Vista | E25: - | F25: - | G25: 0.2 | H25: 0.833629 | I25: ='[12]CAP VI-5'!O24 -> 0.9014010573
D26: Huacaraje | E26: - | F26: - | G26: 0.19 | H26: 0.679305 | I26: ='[12]CAP VI-5'!O25 -> 0.6803341417
D27: El Carmen de Iténez | E27: - | F27: - | G27: - | H27: 0.199361 | I27: ='[12]CAP VI-5'!O26 -> 0.233177
D28: Exaltación | E28: - | F28: - | G28: - | H28: 0.072394 | I28: ='[12]CAP VI-5'!O27 -> 0.216767
B29: Total ENDE DELBENI S.A.M | G29: =SUM(G24:G28) -> 0.66 | H29: 2.905048 | I29: =SUM(I24:I28) -> 3.377631143
B30: CRE R.L. | D30: Cordillera | E30: 26.931019 | F30: 29.769716 | G30: 31.023122 | H30: 32.518519 | I30: ='[12]CAP VI-5'!O35 -> 33.21741659
D31: Roboré y Santiago de Chiquitos | E31: 16.49510006 | F31: 18.49252734 | G31: 19.606297 | H31: 21.04585406 | I31: ='[12]CAP VI-5'!O38 -> 22.0879751
D32: Valles | E32: 24.962853 | F32: 27.356741 | G32: 30.77499453 | H32: 33.037838 | I32: ='[12]CAP VI-5'!O40 -> 34.243891
D33: San Ignacio de Velasco | E33: 20.118833 | F33: 22.009939 | G33: 23.362836 | H33: 24.446847 | I33: ='[12]CAP VI-5'!O39 -> 25.906172
D34: Las Misiones | E34: 45.83474914 | F34: 51.150008 | G34: 55.24141 | H34: 59.494526 | I34: ='[12]CAP VI-5'!O37 -> 58.42489577
D35: Charagua | E35: 2.913148 | F35: 3.280516 | G35: 3.702328 | H35: 4.633612 | I35: ='[12]CAP VI-5'!O34 -> 4.975611
D36: German Busch | E36: 57.328465 | F36: 60.886548 | G36: 60.28414 | H36: 55.369353 | I36: ='[12]CAP VI-5'!O36 -> 57.411821
D37: El Espino | E37: 0 | F37: 0 | G37: 0 | H37: 0.045814 | I37: ='[12]CAP VI-5'!O41 -> 0.070739
B38: Total CRE R.L. | E38: =SUM(E30:E37) -> 194.5841672 | F38: 212.9459953 | G38: 223.9951275 | H38: 230.5923631 | I38: 236.3385215
B39: ENDE GUARACACHI S.A. | D39: San Matías | E39: 6.546096035 | F39: 7.41199065 | G39: 7.853605008 | H39: 8.7442823 | I39: ='[12]CAP VI-5'!O44 -> 8.060722725
B40: TOTAL | E40: =+#REF!+#REF!+E10 ->  | F40: =+#REF!+#REF!+F10 ->  | G40: =+#REF!+#REF!+G10 ->  | H40: =+#REF!+#REF!+H10 ->  | I40: =+#REF!+#REF!+I10 -> 

Sheet Hoja1
